Workbook

Sheet Meni
A1: Шестомесечни извештај здравствених установа 2026
A2: Изаберите филијалу, здравствену установу, упишите датум попуњавања, попуните податке о здравственој установи, попуните обрасцe и податке сачувајте кликом на дугме САЧУВАЈ (назив документа треба да буде шифра установе)
C7: 10.07.2026.
C10: Д.З. " ДР ЂОРЂЕ ЛАЗИЋ" СОМБОР
C11: СОМБОР, МИРНА 3
C12: 08906165
C13: 106204998
C14: 840-802661-74
G21: =IF(KontrolaF!J12 ="","Filijala nije obavila dodatnu kontrolu!", "Filijala je obavila dodatnu kontrolu!") -> Filijala nije obavila dodatnu kontrolu!
A29: 05 СОМБОР | B29: =LEFT(A29,2) -> 05 | D29: 100205007 ДЗ СОМБОР | E29: =LEFT(D29,9) -> 100205007
A30: 01 СУБОТИЦА | B30: 01 | C30: 100201001 ДЗ БАЧКА ТОПОЛА | D30: 100205001 ДЗ АПАТИН
A31: 02 ЗРЕЊАНИН | B31: 01 | C31: 100201002 ДЗ МАЛИ ИЂОШ | D31: 100205002 ДЗ КУЛА
A32: 03 КИКИНДА | B32: 01 | C32: 100201004 ЗЈЗ СУБОТИЦА | D32: 100205003 ДЗ ОЏАЦИ
A33: 04 ПАНЧЕВО | B33: 01 | C33: 100201005 АП СУБОТИЦА | D33: 100205005 ЗЈЗ СОМБОР
A34: 05 СОМБОР | B34: 01 | C34: 100201006 ДЗ СУБОТИЦА | D34: 100205006 АП СОМБОР
A35: 06 НОВИ САД | B35: 01 | C35: 100201007 ОБ СУБОТИЦА | D35: 100205007 ДЗ СОМБОР
A36: 07 СРЕМСКА МИТРОВИЦА | B36: 02 | C36: 100202001 ДЗ ЖИТИШТЕ | D36: 100205008 ОБ СОМБОР
A37: 08 ШАБАЦ | B37: 02 | C37: 100202003 ДЗ НОВИ БЕЧЕЈ | D37: 100205009 СБ ЗА РЕХАБИЛИТАЦИЈУ ЈУНАКОВИЋ АПАТИН
A38: 09 ВАЉЕВО | B38: 02 | C38: 100202004 ДЗ СЕЧАЊ
A39: 10 СМЕДЕРЕВО | B39: 02 | C39: 100202005 ДЗ СРПСКА ЦРЊА
A40: 11 ПОЖАРЕВАЦ | B40: 02 | C40: 100202007 СБ ЗА РЕХАБИЛИТАЦИЈУ РУСАНДА, МЕЛЕНЦИ
A41: 12 КРАГУЈЕВАЦ | B41: 02 | C41: 100202008 СБ ЗА ПЛУЋНЕ БОЛЕСТИ ЗРЕЊАНИН
A42: 13 ЈАГОДИНА | B42: 02 | C42: 100202009 ЗЈЗ ЗРЕЊАНИН
A43: 14 БОР | B43: 02 | C43: 100202010 АП ЗРЕЊАНИН
A44: 15 ЗАЈЕЧАР | B44: 02 | C44: 100202011 ДЗ ЗРЕЊАНИН
A45: 16 УЖИЦЕ | B45: 02 | C45: 100202012 ОБ ЗРЕЊАНИН
A46: 17 ЧАЧАК | B46: 03 | C46: 100203001 ДЗ АДА
A47: 18 КРАЉЕВО | B47: 03 | C47: 100203002 ДЗ КАЊИЖА
A48: 19 КРУШЕВАЦ | B48: 03 | C48: 100203003 ДЗ НОВИ КНЕЖЕВАЦ
A49: 20 НИШ | B49: 03 | C49: 100203004 ДЗ ЧОКА
A50: 21 ПРОКУПЉЕ | B50: 03 | C50: 100203007 СБ НОВИ КНЕЖЕВАЦ
A51: 22 ПИРОТ | B51: 03 | C51: 100203008 СБ ЗА РЕХАБИЛИТАЦИЈУ БАЊА КАЊИЖА
A52: 23 ЛЕСКОВАЦ | B52: 03 | C52: 100203009 ЗЈЗ КИКИНДА
A53: 24 ВРАЊЕ | B53: 03 | C53: 100203010 АП КИКИНДА
A54: 25 ГРАЧАНИЦА | B54: 03 | C54: 100203011 ДЗ КИКИНДА
A55: 28 КОСОВСКА МИТРОВИЦА | B55: 03 | C55: 100203012 OБ КИКИНДА
A56: 29 ГЊИЛАНЕ | B56: 03 | C56: 100203013 ДЗ СЕНТА
A57: 30 БЕОГРАД | B57: 03 | C57: 100203014 ОБ СЕНТА
A58: 33 НОВИ ПАЗАР | B58: 03 | C58: 100203015 АП СЕНТА
B59: 04 | C59: 100204001 ДЗ АЛИБУНАР
B60: 04 | C60: 100204002 ДЗ БЕЛА ЦРКВА
B61: 04 | C61: 100204003 ДЗ КОВАЧИЦА
B62: 04 | C62: 100204004 ДЗ КОВИН
B63: 04 | C63: 100204005 ДЗ ОПОВО
B64: 04 | C64: 100204006 ДЗ ПЛАНДИШТЕ
B65: 04 | C65: 100204009 СБ ЗА ПЛУЋНЕ БОЛЕСТИ БЕЛА ЦРКВА
B66: 04 | C66: 100204010 СБ ЗА ПСИХИЈАТРИЈСКЕ БОЛЕСТИ ВРШАЦ
B67: 04 | C67: 100204011 СБ ЗА ПСИХИЈАТРИЈСКЕ БОЛЕСТИ КОВИН
B68: 04 | C68: 100204012 ЗЈЗ ПАНЧЕВО
B69: 04 | C69: 100204013 АП ПАНЧЕВО
B70: 04 | C70: 100204014 АП ВРШАЦ
B71: 04 | C71: 100204015 ДЗ ВРШАЦ
B72: 04 | C72: 100204016 ОБ ВРШАЦ
B73: 04 | C73: 100204017 ДЗ ПАНЧЕВО
B74: 04 | C74: 100204018 ОБ ПАНЧЕВО
B75: 05 | C75: 100205001 ДЗ АПАТИН
B76: 05 | C76: 100205002 ДЗ КУЛА
B77: 05 | C77: 100205003 ДЗ ОЏАЦИ
B78: 05 | C78: 100205005 ЗЈЗ СОМБОР
B79: 05 | C79: 100205006 АП СОМБОР
B80: 05 | C80: 100205007 ДЗ СОМБОР
B81: 05 | C81: 100205008 ОБ СОМБОР
B82: 05 | C82: 100205009 СБ ЗА РЕХАБИЛИТАЦИЈУ ЈУНАКОВИЋ АПАТИН
B83: 06 | C83: 100206001 ДЗ БАЧ
B84: 06 | C84: 100206002 ДЗ БАЧКА ПАЛАНКА
B85: 06 | C85: 100206003 ДЗ БАЧКИ ПЕТРОВАЦ
B86: 06 | C86: 100206004 ДЗ БЕОЧИН
B87: 06 | C87: 100206005 ДЗ БЕЧЕЈ
B88: 06 | C88: 100206006 ДЗ ЖАБАЉ
B89: 06 | C89: 100206007 ДЗ СРБОБРАН
B90: 06 | C90: 100206008 ДЗ ТЕМЕРИН
B91: 06 | C91: 100206009 ДЗ ТИТЕЛ
B92: 06 | C92: 100206010 ДЗ НОВИ САД
B93: 06 | C93: 100206012 ЗАВОД ЗА ТРАНСФУЗИЈУ КРВИ ВОЈВОДИНЕ
B94: 06 | C94: 100206013 СБ ЗА РЕУМАТСКЕ БОЛЕСТИ НОВИ САД
B95: 06 | C95: 100206014 ИЗЈЗ ВОЈВОДИНЕ
B96: 06 | C96: 100206015 ИНСТИТУТ ЗА ОНКОЛОГИЈУ ВОЈВОДИНЕ
B97: 06 | C97: 100206016 ИНСТИТУТ ЗА ПЛУЋНЕ БОЛЕСТИ ВОЈВОДИНЕ
B98: 06 | C98: 100206017 ИКВБ ВОЈВОДИНЕ
B99: 06 | C99: 100206018 ИНСТИТУТ ЗА ЗЗ ДЕЦЕ И ОМЛАДИНЕ ВОЈВОДИНЕ
B100: 06 | C100: 100206019 КЛИНИКА ЗА ДЕНТАЛНУ МЕДИЦИНУ ВОЈВОДИНЕ
B101: 06 | C101: 100206020 УНИВЕРЗИТЕТСКИ КЛИНИЧКИ ЦЕНТАР ВОЈВОДИНЕ
B102: 06 | C102: 100206021 ЗЗЗ РАДНИКА НОВИ САД
B103: 06 | C103: 100206022 ЗЗЗ СТУДЕНАТА НОВИ САД
B104: 06 | C104: 100206023 ПАСТЕРОВ ЗАВОД НОВИ САД
B105: 06 | C105: 100206024 АП НОВИ САД
B106: 06 | C106: 100206025 ЗАВОД ЗА УРГЕНТНУ МЕДИЦИНУ НОВИ САД
B107: 06 | C107: 100206026 ДЗ ВРБАС
B108: 06 | C108: 100206027 ОБ ВРБАС
B109: 06 | C109: 100206028 АП ВРБАС
B110: 06 | C110: 100206029 ВМЦ НОВИ САД
B111: 07 | C111: 100207001 ДЗ ИНЂИЈА
B112: 07 | C112: 100207002 ДЗ ПЕЋИНЦИ
B113: 07 | C113: 100207003 ДЗ РУМА
B114: 07 | C114: 100207004 ДЗ СТАРА ПАЗОВА
B115: 07 | C115: 100207005 ДЗ ШИД
B116: 07 | C116: 100207007 СБ СТАРИ СЛАНКАМЕН
B117: 07 | C117: 100207008 ЗЈЗ СРЕМСКА МИТРОВИЦА
B118: 07 | C118: 100207009 СБ ЗА РЕХАБИЛИТАЦИЈУ ТЕРМАЛ ВРДНИК
B119: 07 | C119: 100207010 АП СРЕМСКА МИТРОВИЦА
B120: 07 | C120: 100207011 ДЗ ИРИГ
B121: 07 | C121: 100207012 ДЗ СРЕМСКА МИТРОВИЦА
B122: 07 | C122: 100207013 ОБ СРЕМСКА МИТРОВИЦА
B123: 07 | C123: 100207014 ЗЦ СРЕМСКА МИТРОВИЦА
B124: 08 | C124: 100208001 ДЗ БОГАТИЋ
B125: 08 | C125: 100208002 ДЗ ЉУБОВИЈА
B126: 08 | C126: 100208005 СБ ЗА РЕХАБИЛИТАЦИЈУ БАЊА КОВИЉАЧА
B127: 08 | C127: 100208006 ЗЈЗ ШАБАЦ
B128: 08 | C128: 100208007 АУ ЛОЗНИЦА
B129: 08 | C129: 100208008 АП ШАБАЦ
B130: 08 | C130: 100208011 ДЗ ВЛАДИМИРЦИ
B131: 08 | C131: 100208012 ДЗ КОЦЕЉЕВА
B132: 08 | C132: 100208014 ДЗ КРУПАЊ
B133: 08 | C133: 100208015 ДЗ МАЛИ ЗВОРНИК
B134: 08 | C134: 100208017 ЗЦ ЛОЗНИЦА
B135: 08 | C135: 100208018 ЗЦ ШАБАЦ
B136: 09 | C136: 100209001 ДЗ УБ
B137: 09 | C137: 100209003 АП ВАЉЕВО
B138: 09 | C138: 100209004 ДЗ ЛАЈКОВАЦ
B139: 09 | C139: 100209005 ЗЈЗ ВАЉЕВО
B140: 09 | C140: 100209008 ДЗ ОСЕЧИНА
B141: 09 | C141: 100209009 ДЗ ЉИГ
B142: 09 | C142: 100209010 ДЗ МИОНИЦА
B143: 09 | C143: 100209012 ЗЦ ВАЉЕВО
B144: 10 | C144: 100210002 ОБ СМЕДЕРЕВСКА ПАЛАНКА
B145: 10 | C145: 100210003 АП СМЕДЕРЕВСКА ПАЛАНКА
B146: 10 | C146: 100210004 АП СМЕДЕРЕВО
B147: 10 | C147: 100210005 ДЗ ВЕЛИКА ПЛАНА
B148: 10 | C148: 100210006 ДЗ СМЕДЕРЕВСКА ПАЛАНКА
B149: 10 | C149: 100210007 АУ ВЕЛИКА ПЛАНА
B150: 10 | C150: 100210010 ЗЦ СМЕДЕРЕВО
B151: 11 | C151: 100211001 ДЗ ВЕЛИКО ГРАДИШТЕ
B152: 11 | C152: 100211002 ДЗ ЖАГУБИЦА
B153: 11 | C153: 100211005 ЗЈЗ ПОЖАРЕВАЦ
B154: 11 | C154: 100211006 АП ПОЖАРЕВАЦ
B155: 11 | C155: 100211007 ДЗ ЖАБАРИ
B156: 11 | C156: 100211008 ДЗ ГОЛУБАЦ
B157: 11 | C157: 100211009 ДЗ КУЧЕВО
B158: 11 | C158: 100211010 ДЗ МАЛО ЦРНИЋЕ
B159: 11 | C159: 100211011 ДЗ ПОЖАРЕВАЦ
B160: 11 | C160: 100211012 OБ ПОЖАРЕВАЦ
B161: 11 | C161: 100211013 ДЗ ПЕТРОВАЦ НА МЛАВИ
B162: 11 | C162: 100211014 ОБ ПЕТРОВАЦ НА МЛАВИ
B163: 12 | C163: 100212001 ДЗ КРАГУЈЕВАЦ
B164: 12 | C164: 100212002 ДЗ БАТОЧИНА
B165: 12 | C165: 100212003 ДЗ КНИЋ
B166: 12 | C166: 100212004 ДЗ ЛАПОВО
B167: 12 | C167: 100212005 ДЗ РАЧА
B168: 12 | C168: 100212006 ДЗ ТОПОЛА
B169: 12 | C169: 100212007 ЗЦ АРАНЂЕЛОВАЦ
B170: 12 | C170: 100212008 ЗАВОД ЗА ДЕНТАЛНУ МЕДИЦИНУ КРАГУЈЕВАЦ
B171: 12 | C171: 100212009 СБ ЗА РЕХАБИЛИТАЦИЈУ БУКОВИЧКА БАЊА
B172: 12 | C172: 100212010 УНИВЕРЗИТЕТСКИ КЛИНИЧКИ ЦЕНТАР КРАГУЈЕВАЦ
B173: 12 | C173: 100212011 ИЗЈЗ КРАГУЈЕВАЦ
B174: 12 | C174: 100212012 АП КРАГУЈЕВАЦ
B175: 12 | C175: 100212013 АП АРАНЂЕЛОВАЦ
B176: 12 | C176: 100212014 ЗАВОД ЗА УРГЕНТНУ МЕДИЦИНУ КРАГУЈЕВАЦ
B177: 13 | C177: 100213001 ДЗ ДЕСПОТОВАЦ
B178: 13 | C178: 100213002 ДЗ СВИЛАЈНАЦ
B179: 13 | C179: 100213005 ЗЈЗ ЋУПРИЈА
B180: 13 | C180: 100213007 ДЗ РЕКОВАЦ
B181: 13 | C181: 100213008 ДЗ ЈАГОДИНА
B182: 13 | C182: 100213009 ОБ ЈАГОДИНА
B183: 13 | C183: 100213010 АП ЈАГОДИНА
B184: 13 | C184: 100213011 ДЗ ЋУПРИЈА
B185: 13 | C185: 100213012 ОБ ЋУПРИЈА
B186: 13 | C186: 100213014 ДЗ ПАРАЋИН
B187: 13 | C187: 100213015 АП ПАРАЋИН
B188: 13 | C188: 100213016 ОБ ПАРАЋИН
B189: 14 | C189: 100214002 ЗЦ НЕГОТИН
B190: 14 | C190: 100214003 ЗЦ КЛАДОВО
B191: 14 | C191: 100214005 АУ БОР
B192: 14 | C192: 100214006 ДЗ МАЈДАНПЕК
B193: 14 | C193: 100214007 ОБ МАЈДАНПЕК
B194: 14 | C194: 100214010 ЗЦ БОР
B195: 15 | C195: 100215001 ДЗ БОЉЕВАЦ
B196: 15 | C196: 100215002 ЗЦ КЊАЖЕВАЦ
B197: 15 | C197: 100215003 ЗЦ ЗАЈЕЧАР
B198: 15 | C198: 100215004 СБ ЗА РЕХАБИЛИТАЦИЈУ ГАМЗИГРАД
B199: 15 | C199: 100215005 ЗЈЗ ЗАЈЕЧАР
B200: 15 | C200: 100215006 АП ЗАЈЕЧАР
B201: 16 | C201: 100216001 ЗЦ УЖИЦЕ
B202: 16 | C202: 100216003 СБ ЗЛАТИБОР, ЧАЈЕТИНА
B203: 16 | C203: 100216004 ЗЈЗ УЖИЦЕ
B204: 16 | C204: 100216005 АП УЖИЦЕ
B205: 17 | C205: 100217003 СБ ЗА РЕХАБИЛИТАЦИЈУ ИВАЊИЦА
B206: 17 | C206: 100217004 ЗЈЗ ЧАЧАК
B207: 17 | C207: 100217005 АП ЧАЧАК
B208: 17 | C208: 100217006 АП ГОРЊИ МИЛАНОВАЦ
B209: 17 | C209: 100217009 ДЗ ЧАЧАК
B210: 17 | C210: 100217010 ДЗ ИВАЊИЦА
B211: 17 | C211: 100217011 ДЗ ЛУЧАНИ
B212: 17 | C212: 100217012 ОБ ЧАЧАК
B213: 17 | C213: 100217013 ЗЦ ГОРЊИ МИЛАНОВАЦ
B214: 18 | C214: 100218001 ДЗ РАШКА
B215: 18 | C215: 100218004 ЗЈЗ КРАЉЕВО
B216: 33 | C216: 100218005 СБ НОВИ ПАЗАР
B217: 18 | C217: 100218006 СБ ЗА ЛЕЧЕЊЕ И РХ МЕРКУР, ВРЊАЧКА БАЊА
B218: 18 | C218: 100218007 СБ ЗА РЕХАБИЛИТАЦИЈУ АГЕНС, МАТАРУШКА БАЊА
B219: 18 | C219: 100218008 АУ КРАЉЕВО
... 158 more rows

Sheet ObrazacIB
K1: Образац ИБ
A7: Назив корисника буџетских средстава
A8: =NazivKorisnika -> Д.З. " ДР ЂОРЂЕ ЛАЗИЋ" СОМБОР
A9: ="Седиште: " & Sediste -> Седиште: СОМБОР, МИРНА 3 | D9: ="Матични број: " & MaticniBroj -> Матични број: 08906165
A10: ="ПИБ: " & PIB -> ПИБ: 106204998 | D10: ="Број подрачуна: " & BrojPodracuna -> Број подрачуна: 840-802661-74
A11: Назив надлежног директног корисника буџетских средстава
A12: _______________________________________________________________________
A13: (Попуњава само индиректни корисник буџетских средстава)
A14: ИЗВЕШТАЈ О ИЗВРШЕЊУ БУЏЕТА
A15: у периоду од 01.01.2026. - 30.06.2026. године
A16: I. УКУПНИ ПРИХОДИ И ПРИМАЊА
K17: (У хиљадама динара)
A18: Ознака ОП | B18: Број конта | C18: Опис | D18: Износ планираних прихода и примања | E18: Износ остварених прихода и примања
E19: Укупно (од 6 до 11) | F19: Приходи и примања из буџета | J19: Из донација и помоћи | K19: Из осталих извора
F20: Републике | G20: Аутономне покрајине | H20: Општине / града | I20: ООСО
A21: 1 | B21: 2 | C21: 3 | D21: 4 | E21: 5 | F21: 6 | G21: 7 | H21: 8 | I21: 9 | J21: 10 | K21: 11
A22: 5001 | C22: ТЕКУЋИ ПРИХОДИ И ПРИМАЊА ОД ПРОДАЈЕ НЕФИНАНСИЈСКЕ ИМОВИНЕ (5002 + 5106) | D22: =D23+D147 -> 1237874 | E22: =SUM(F22:K22) -> 598736 | F22: =F23+F147 -> 94 | G22: 0 | H22: 6167 | I22: 563659 | J22: 10818 | K22: 17998
A23: 5002 | B23: 700000 | C23: ТЕКУЋИ ПРИХОДИ (5003 + 5047 + 5057 + 5069 + 5094 + 5099 + 5103) | D23: =D24+D76+D90+D102+D131+D136+D140 -> 1237874 | E23: 598736 | F23: =F24+F76+F90+F102+F131+F136+F140 -> 94 | G23: 0 | H23: 6167 | I23: 563659 | J23: 10818 | K23: 17998
A24: 5003 | B24: 710000 | C24: ПОРЕЗИ (5004 + 5008 + 5010 + 5017 + 5023 + 5030 + 5033 + 5040) | D24: =D25+D33+D35+D42+D48+D55+D58+D69 -> 0 | E24: 0 | F24: =F25+F33+F35+F42+F48+F55+F58+F69 -> 0 | G24: 0 | H24: 0 | I24: 0 | J24: 0 | K24: 0
A25: 5004 | B25: 711000 | C25: ПОРЕЗ НА ДОХОДАК, ДОБИТ И КАПИТАЛНЕ ДОБИТКЕ (од 5005 до 5007) | D25: =SUM(D26:D32) -> 0 | E25: 0 | F25: =SUM(F26:F32) -> 0 | G25: 0 | H25: 0 | I25: 0 | J25: 0 | K25: 0
A26: 5005 | B26: 711100 | C26: Порези на доходак и капиталнe добиткe које плаћају физичка лица | E26: 0
A27: Ознака ОП | B27: Број конта | C27: Опис | D27: Износ планираних прихода и примања | E27: Износ остварених прихода и примања
E28: Укупно (од 6 до 11) | F28: Приходи и примања из буџета | J28: Из донација и помоћи | K28: Из осталих извора
F29: Републике | G29: Аутономне покрајине | H29: Општине / града | I29: ООСО
A30: 1 | B30: 2 | C30: 3 | D30: 4 | E30: 5 | F30: 6 | G30: 7 | H30: 8 | I30: 9 | J30: 10 | K30: 11
A31: 5006 | B31: 711200 | C31: Порези на добит и капиталне добитке које плаћају предузећа и друга правна лица | E31: 0
A32: 5007 | B32: 711300 | C32: Порези на доходак, добит и капиталне добитке који се не могу разврстати између физичких и правних лица | E32: 0
A33: 5008 | B33: 712000 | C33: ПОРЕЗ НА ФОНД ЗАРАДА (5009) | D33: =D34 -> 0 | E33: 0 | F33: =F34 -> 0 | G33: 0 | H33: 0 | I33: 0 | J33: 0 | K33: 0
A34: 5009 | B34: 712100 | C34: Порез на фонд зарада | E34: 0
A35: 5010 | B35: 713000 | C35: ПОРЕЗ НА ИМОВИНУ (од 5011 до 5016) | D35: =SUM(D36:D41) -> 0 | E35: 0 | F35: =SUM(F36:F41) -> 0 | G35: 0 | H35: 0 | I35: 0 | J35: 0 | K35: 0
A36: 5011 | B36: 713100 | C36: Периодични порези на непокретности | E36: 0
A37: 5012 | B37: 713200 | C37: Периодични порези на нето имовину | E37: 0
A38: 5013 | B38: 713300 | C38: Порези на заоставштину, наслеђе и поклон | E38: 0
A39: 5014 | B39: 713400 | C39: Порези на финансијске и капиталне трансакције | E39: 0
A40: 5015 | B40: 713500 | C40: Други једнократни порези на имовину | E40: 0
A41: 5016 | B41: 713600 | C41: Други периодични порези на имовину | E41: 0
A42: 5017 | B42: 714000 | C42: ПОРЕЗ НА ДОБРА И УСЛУГЕ (од 5018 до 5022) | D42: =SUM(D43:D47) -> 0 | E42: 0 | F42: =SUM(F43:F47) -> 0 | G42: 0 | H42: 0 | I42: 0 | J42: 0 | K42: 0
A43: 5018 | B43: 714100 | C43: Општи порези на добра и услуге | E43: 0
A44: 5019 | B44: 714300 | C44: Добит фискалних монопола | E44: 0
A45: 5020 | B45: 714400 | C45: Порези на појединачне услуге | E45: 0
A46: 5021 | B46: 714500 | C46: Порези, таксе и накнаде на употребу добара, на дозволу да се добра употребљавају или делатности обављају | E46: 0
A47: 5022 | B47: 714600 | C47: Други порези на добра и услуге | E47: 0
A48: 5023 | B48: 715000 | C48: ПОРЕЗ НА МЕЂУНАРОДНУ ТРГОВИНУ И ТРАНСАКЦИЈЕ (од 5024 до 5029) | D48: =SUM(D49:D54) -> 0 | E48: 0 | F48: =SUM(F49:F54) -> 0 | G48: 0 | H48: 0 | I48: 0 | J48: 0 | K48: 0
A49: 5024 | B49: 715100 | C49: Царине и друге увозне дажбине | E49: 0
A50: 5025 | B50: 715200 | C50: Порези на извоз | E50: 0
A51: 5026 | B51: 715300 | C51: Добит извозних или увозних монопола | E51: 0
A52: 5027 | B52: 715400 | C52: Добит по основу разлике између куповног и продајног девизног курса | E52: 0
A53: 5028 | B53: 715500 | C53: Порези на продају или куповину девиза | E53: 0
A54: 5029 | B54: 715600 | C54: Други порези на међународну трговину и трансакције | E54: 0
A55: 5030 | B55: 716000 | C55: ДРУГИ ПОРЕЗИ (5031 + 5032) | D55: =D56+D57 -> 0 | E55: 0 | F55: =F56+F57 -> 0 | G55: 0 | H55: 0 | I55: 0 | J55: 0 | K55: 0
A56: 5031 | B56: 716100 | C56: Други порези које искључиво плаћају предузећа, односно предузетници | E56: 0
A57: 5032 | B57: 716200 | C57: Други порези које плаћају остала лица или који се не могу идентификовати | E57: 0
A58: 5033 | B58: 717000 | C58: АКЦИЗЕ (од 5034 до 5039) | D58: =SUM(D63:D68) -> 0 | E58: =SUM(F58:K58) -> 0 | F58: =SUM(F63:F68) -> 0 | G58: 0 | H58: 0 | I58: 0 | J58: 0 | K58: 0
A59: Ознака ОП | B59: Број конта | C59: Опис | D59: Износ планираних прихода и примања | E59: Износ остварених прихода и примања
E60: Укупно (од 6 до 11) | F60: Приходи и примања из буџета | J60: Из донација и помоћи | K60: Из осталих извора
F61: Републике | G61: Аутономне покрајине | H61: Општине / града | I61: ООСО
A62: 1 | B62: 2 | C62: 3 | D62: 4 | E62: 5 | F62: 6 | G62: 7 | H62: 8 | I62: 9 | J62: 10 | K62: 11
A63: 5034 | B63: 717100 | C63: Акцизе на деривате нафте | E63: 0
A64: 5035 | B64: 717200 | C64: Акцизе на дуванске прерађевине | E64: 0
A65: 5036 | B65: 717300 | C65: Акцизе на алкохолна пића | E65: 0
A66: 5037 | B66: 717400 | C66: Акцизе на освежавајућа безалкохолна пића | E66: 0
A67: 5038 | B67: 717500 | C67: Акциза на кафу | E67: 0
A68: 5039 | B68: 717600 | C68: Друге акцизе | E68: 0
A69: 5040 | B69: 719000 | C69: ЈЕДНОКРАТНИ ПОРЕЗ НА ЕКСТРА ПРОФИТ И ЕКСТРА ИМОВИНУ СТЕЧЕНУ КОРИШЋЕЊЕМ ПОСЕБНИХ ПОГОДНОСТИ (од 5041 до 5046) | D69: =SUM(D70:D75) -> 0 | E69: 0 | F69: =SUM(F70:F75) -> 0 | G69: 0 | H69: 0 | I69: 0 | J69: 0 | K69: 0
A70: 5041 | B70: 719100 | C70: Порез на доходак, добит и капиталну добит на терет физичких лица | E70: 0
A71: 5042 | B71: 719200 | C71: Порез на доходак, добит и капиталну добит на терет предузећа и осталих правних лица | E71: 0
A72: 5043 | B72: 719300 | C72: Порез на доходак, добит и капиталну добит нераспоредив између физичких и правних лица | E72: 0
A73: 5044 | B73: 719400 | C73: Остали једнократни порези на имовину | E73: 0
A74: 5045 | B74: 719500 | C74: Остали порези које плаћају искључиво предузећа и предузетници | E74: 0
A75: 5046 | B75: 719600 | C75: Остали порези које плаћају друга или неидентификована лица | E75: 0
A76: 5047 | B76: 720000 | C76: СОЦИЈАЛНИ ДОПРИНОСИ (5048 + 5053) | D76: =D77+D82 -> 0 | E76: 0 | F76: =F77+F82 -> 0 | G76: 0 | H76: 0 | I76: 0 | J76: 0 | K76: 0
A77: 5048 | B77: 721000 | C77: ДОПРИНОСИ ЗА СОЦИЈАЛНО ОСИГУРАЊЕ (од 5049 до 5052) | D77: =SUM(D78:D81) -> 0 | E77: 0 | F77: =SUM(F78:F81) -> 0 | G77: 0 | H77: 0 | I77: 0 | J77: 0 | K77: 0
A78: 5049 | B78: 721100 | C78: Доприноси за социјално осигурање на терет запослених | E78: 0
A79: 5050 | B79: 721200 | C79: Доприноси за социјално осигурање на терет послодавца | E79: 0
A80: 5051 | B80: 721300 | C80: Доприноси за социјално осигурање лица која обављају самосталну делатност и незапослених лица | E80: 0
A81: 5052 | B81: 721400 | C81: Доприноси за социјално осигурање који се не могу разврстати | E81: 0
A82: 5053 | B82: 722000 | C82: ОСТАЛИ СОЦИЈАЛНИ ДОПРИНОСИ (од 5054 до 5056) | D82: =SUM(D83:D85) -> 0 | E82: 0 | F82: =SUM(F83:F85) -> 0 | G82: 0 | H82: 0 | I82: 0 | J82: 0 | K82: 0
A83: 5054 | B83: 722100 | C83: Социјални доприноси на терет осигураника | E83: 0
A84: 5055 | B84: 722200 | C84: Социјални доприноси на терет послодаваца | E84: 0
A85: 5056 | B85: 722300 | C85: Импутирани социјални доприноси | E85: 0
A86: Ознака ОП | B86: Број конта | C86: Опис | D86: Износ планираних прихода и примања | E86: Износ остварених прихода и примања
E87: Укупно (од 6 до 11) | F87: Приходи и примања из буџета | J87: Из донација и помоћи | K87: Из осталих извора
F88: Републике | G88: Аутономне покрајине | H88: Општине / града | I88: ООСО
A89: 1 | B89: 2 | C89: 3 | D89: 4 | E89: 5 | F89: 6 | G89: 7 | H89: 8 | I89: 9 | J89: 10 | K89: 11
A90: 5057 | B90: 730000 | C90: ДОНАЦИЈЕ, ПОМОЋИ И ТРАНСФЕРИ (5058 + 5061 + 5066) | D90: =D91+D94+D99 -> 69051 | E90: 16985 | F90: =F91+F94+F99 -> 0 | G90: 0 | H90: 6167 | I90: 0 | J90: 10818 | K90: 0
A91: 5058 | B91: 731000 | C91: ДОНАЦИЈЕ ОД ИНОСТРАНИХ ДРЖАВА (5059 + 5060) | D91: =D92+D93 -> 0 | E91: 0 | F91: =F92+F93 -> 0 | G91: 0 | H91: 0 | I91: 0 | J91: 0 | K91: 0
A92: 5059 | B92: 731100 | C92: Текуће донације од иностраних држава | E92: 0
A93: 5060 | B93: 731200 | C93: Капиталне донације од иностраних држава | E93: 0
A94: 5061 | B94: 732000 | C94: ДОНАЦИЈЕ И ПОМОЋИ ОД МЕЂУНАРОДНИХ ОРГАНИЗАЦИЈА (од 5062 до 5065) | D94: =D95+D96+D97+D98 -> 41051 | E94: 10818 | F94: =F95+F96+F97+F98 -> 0 | G94: 0 | H94: 0 | I94: 0 | J94: 10818 | K94: 0
A95: 5062 | B95: 732100 | C95: Текуће донације од међународних организација | D95: 41051 | E95: 10818 | J95: 10818
A96: 5063 | B96: 732200 | C96: Капиталне донације од међународних организација | E96: 0
A97: 5064 | B97: 732300 | C97: Текуће помоћи од ЕУ | E97: 0
A98: 5065 | B98: 732400 | C98: Капиталне помоћи од ЕУ | E98: 0
A99: 5066 | B99: 733000 | C99: ТРАНСФЕРИ ОД ДРУГИХ НИВОА ВЛАСТИ (5067 + 5068) | D99: =D100+D101 -> 28000 | E99: 6167 | F99: =F100+F101 -> 0 | G99: 0 | H99: 6167 | I99: 0 | J99: 0 | K99: 0
A100: 5067 | B100: 733100 | C100: Текући трансфери од других нивоа власти | D100: 28000 | E100: =SUM(F100:K100) -> 6167 | H100: 6167
A101: 5068 | B101: 733200 | C101: Капитални трансфери од других нивоа власти | E101: 0
A102: 5069 | B102: 740000 | C102: ДРУГИ ПРИХОДИ (5070 + 5077 + 5082 + 5089 + 5092) | D102: =D103+D110+D115+D126+D129 -> 27079 | E102: 17998 | F102: =F103+F110+F115+F126+F129 -> 0 | G102: 0 | H102: 0 | I102: 0 | J102: 0 | K102: 17998
A103: 5070 | B103: 741000 | C103: ПРИХОДИ ОД ИМОВИНЕ (од 5071 до 5076) | D103: =SUM(D104:D109) -> 0 | E103: 0 | F103: =SUM(F104:F109) -> 0 | G103: 0 | H103: 0 | I103: 0 | J103: 0 | K103: 0
A104: 5071 | B104: 741100 | C104: Камате | E104: 0
A105: 5072 | B105: 741200 | C105: Дивиденде | E105: 0
A106: 5073 | B106: 741300 | C106: Повлачење прихода од квази корпорација | E106: 0
A107: 5074 | B107: 741400 | C107: Приход од имовине који припада имаоцима полиса осигурања | E107: 0
A108: 5075 | B108: 741500 | C108: Закуп непроизведене имовине | E108: 0
A109: 5076 | B109: 741600 | C109: Финансијске промене на финансијским лизинзима | E109: 0
A110: 5077 | B110: 742000 | C110: ПРИХОДИ ОД ПРОДАЈЕ ДОБАРА И УСЛУГА (од 5078 до 5081) | D110: =SUM(D111:D114) -> 27079 | E110: 17998 | F110: =SUM(F111:F114) -> 0 | G110: 0 | H110: 0 | I110: 0 | J110: 0 | K110: 17998
A111: 5078 | B111: 742100 | C111: Приходи од продаје добара и услуга или закупа од стране тржишних организација | E111: 0
A112: 5079 | B112: 742200 | C112: Таксе и накнаде | E112: 0
A113: 5080 | B113: 742300 | C113: Споредне продаје добара и услуга које врше државне нетржишне јединице | D113: 27079 | E113: 17998 | K113: 17998
A114: 5081 | B114: 742400 | C114: Импутиране продаје добара и услуга | E114: 0
A115: 5082 | B115: 743000 | C115: НОВЧАНЕ КАЗНЕ И ОДУЗЕТА ИМОВИНСКА КОРИСТ (од 5083 до 5088) | D115: =SUM(D120:D125) -> 0 | E115: 0 | F115: =SUM(F120:F125) -> 0 | G115: 0 | H115: 0 | I115: 0 | J115: 0 | K115: 0
A116: Ознака ОП | B116: Број конта | C116: Опис | D116: Износ планираних прихода и примања | E116: Износ остварених прихода и примања
E117: Укупно (од 6 до 11) | F117: Приходи и примања из буџета | J117: Из донација и помоћи | K117: Из осталих извора
F118: Републике | G118: Аутономне покрајине | H118: Општине / града | I118: ООСО
A119: 1 | B119: 2 | C119: 3 | D119: 4 | E119: 5 | F119: 6 | G119: 7 | H119: 8 | I119: 9 | J119: 10 | K119: 11
A120: 5083 | B120: 743100 | C120: Приходи од новчаних казни за кривична дела | E120: 0
A121: 5084 | B121: 743200 | C121: Приходи од новчаних казни за привредне преступе | E121: 0
A122: 5085 | B122: 743300 | C122: Приходи од новчаних казни за прекршаје | E122: 0
A123: 5086 | B123: 743400 | C123: Приходи од пенала | E123: 0
A124: 5087 | B124: 743500 | C124: Приходи од одузете имовинске користи | E124: 0
A125: 5088 | B125: 743900 | C125: Остале новчане казне, пенали и приходи од одузете имовинске користи | E125: 0
A126: 5089 | B126: 744000 | C126: ДОБРОВОЉНИ ТРАНСФЕРИ ОД ФИЗИЧКИХ И ПРАВНИХ ЛИЦА (5090 + 5091) | D126: =D127+D128 -> 0 | E126: 0 | F126: =F127+F128 -> 0 | G126: 0 | H126: 0 | I126: 0 | J126: 0 | K126: 0
A127: 5090 | B127: 744100 | C127: Текући добровољни трансфери од физичких и правних лица | E127: 0
A128: 5091 | B128: 744200 | C128: Капитални добровољни трансфери од физичких и правних лица | E128: 0
A129: 5092 | B129: 745000 | C129: МЕШОВИТИ И НЕОДРЕЂЕНИ ПРИХОДИ (5093) | D129: =D130 -> 0 | E129: 0 | F129: =F130 -> 0 | G129: 0 | H129: 0 | I129: 0 | J129: 0 | K129: 0
A130: 5093 | B130: 745100 | C130: Мешовити и неодређени приходи | E130: 0
A131: 5094 | B131: 770000 | C131: МЕМОРАНДУМСКЕ СТАВКЕ ЗА РЕФУНДАЦИЈУ РАСХОДА (5095 + 5097) | D131: =D132+D134 -> 36755 | E131: 0 | F131: =F132+F134 -> 0 | G131: 0 | H131: 0 | I131: 0 | J131: 0 | K131: 0
A132: 5095 | B132: 771000 | C132: МЕМОРАНДУМСКЕ СТАВКЕ ЗА РЕФУНДАЦИЈУ РАСХОДА (5096) | D132: =D133 -> 36755 | E132: 0 | F132: =F133 -> 0 | G132: 0 | H132: 0 | I132: 0 | J132: 0 | K132: 0
A133: 5096 | B133: 771100 | C133: Меморандумске ставке за рефундацију расхода | D133: 36755 | E133: 0
A134: 5097 | B134: 772000 | C134: МЕМОРАНДУМСКЕ СТАВКЕ ЗА РЕФУНДАЦИЈУ РАСХОДА ИЗ ПРЕТХОДНЕ ГОДИНЕ (5098) | D134: =D135 -> 0 | E134: 0 | F134: =F135 -> 0 | G134: 0 | H134: 0 | I134: 0 | J134: 0 | K134: 0
A135: 5098 | B135: 772100 | C135: Меморандумске ставке за рефундацију расхода из претходне године | E135: 0
A136: 5099 | B136: 780000 | C136: ТРАНСФЕРИ ИЗМЕЂУ БУЏЕТСКИХ КОРИСНИКА НА ИСТОМ НИВОУ (5100) | D136: =D137 -> 1104989 | E136: =SUM(F136:K136) -> 563753 | F136: =F137 -> 94 | G136: 0 | H136: 0 | I136: 563659 | J136: 0 | K136: 0
A137: 5100 | B137: 781000 | C137: ТРАНСФЕРИ ИЗМЕЂУ БУЏЕТСКИХ КОРИСНИКА НА ИСТОМ НИВОУ (5101 + 5102) | D137: =D138+D139 -> 1104989 | E137: 563753 | F137: =F138+F139 -> 94 | G137: 0 | H137: 0 | I137: 563659 | J137: 0 | K137: 0
A138: 5101 | B138: 781100 | C138: Трансфери између буџетских корисника на истом нивоу | D138: 1104989 | E138: =SUM(F138:K138) -> 563753 | F138: 94 | I138: 563659
A139: 5102 | B139: 781300 | C139: Трансфери између организација обавезног социјалног осигурања | E139: 0
A140: 5103 | B140: 790000 | C140: ПРИХОДИ ИЗ БУЏЕТА (5104) | D140: =D141 -> 0 | E140: 0 | F140: =F141 -> 0 | G140: 0 | H140: 0 | I140: 0 | J140: 0 | K140: 0
A141: 5104 | B141: 791000 | C141: ПРИХОДИ ИЗ БУЏЕТА (5105) | D141: =D146 -> 0 | E141: 0 | F141: =F146 -> 0 | G141: 0 | H141: 0 | I141: 0 | J141: 0 | K141: 0
A142: Ознака ОП | B142: Број конта | C142: Опис | D142: Износ планираних прихода и примања | E142: Износ остварених прихода и примања
E143: Укупно (од 6 до 11) | F143: Приходи и примања из буџета | J143: Из донација и помоћи | K143: Из осталих извора
F144: Републике | G144: Аутономне покрајине | H144: Општине / града | I144: ООСО
A145: 1 | B145: 2 | C145: 3 | D145: 4 | E145: 5 | F145: 6 | G145: 7 | H145: 8 | I145: 9 | J145: 10 | K145: 11
A146: 5105 | B146: 791100 | C146: Приходи из буџета | E146: 0
A147: 5106 | B147: 800000 | C147: ПРИМАЊА ОД ПРОДАЈЕ НЕФИНАНСИЈСКЕ ИМОВИНЕ (5107 + 5114 + 5121 + 5124) | D147: =D148+D155+D162+D165 -> 0 | E147: 0 | F147: =F148+F155+F162+F165 -> 0 | G147: 0 | H147: 0 | I147: 0 | J147: 0 | K147: 0
A148: 5107 | B148: 810000 | C148: ПРИМАЊА ОД ПРОДАЈЕ ОСНОВНИХ СРЕДСТАВА (5108 + 5110 + 5112) | D148: =D149+D151+D153 -> 0 | E148: 0 | F148: =F149+F151+F153 -> 0 | G148: 0 | H148: 0 | I148: 0 | J148: 0 | K148: 0
A149: 5108 | B149: 811000 | C149: ПРИМАЊА ОД ПРОДАЈЕ НЕПОКРЕТНОСТИ (5109) | D149: =D150 -> 0 | E149: 0 | F149: =F150 -> 0 | G149: 0 | H149: 0 | I149: 0 | J149: 0 | K149: 0
A150: 5109 | B150: 811100 | C150: Примања од продаје непокретности | E150: 0
A151: 5110 | B151: 812000 | C151: ПРИМАЊА ОД ПРОДАЈЕ ПОКРЕТНЕ ИМОВИНЕ (5111) | D151: =D152 -> 0 | E151: 0 | F151: =F152 -> 0 | G151: 0 | H151: 0 | I151: 0 | J151: 0 | K151: 0
A152: 5111 | B152: 812100 | C152: Примања од продаје покретне имовине | E152: 0
A153: 5112 | B153: 813000 | C153: ПРИМАЊА ОД ПРОДАЈЕ ОСТАЛИХ ОСНОВНИХ СРЕДСТАВА (5113) | D153: =D154 -> 0 | E153: 0 | F153: =F154 -> 0 | G153: 0 | H153: 0 | I153: 0 | J153: 0 | K153: 0
A154: 5113 | B154: 813100 | C154: Примања од продаје осталих основних средстава | E154: 0
A155: 5114 | B155: 820000 | C155: ПРИМАЊА ОД ПРОДАЈЕ ЗАЛИХА (5115 + 5117 + 5119) | D155: =D156+D158+D160 -> 0 | E155: 0 | F155: =F156+F158+F160 -> 0 | G155: 0 | H155: 0 | I155: 0 | J155: 0 | K155: 0
A156: 5115 | B156: 821000 | C156: ПРИМАЊА ОД ПРОДАЈЕ РОБНИХ РЕЗЕРВИ (5116) | D156: =D157 -> 0 | E156: 0 | F156: =F157 -> 0 | G156: 0 | H156: 0 | I156: 0 | J156: 0 | K156: 0
A157: 5116 | B157: 821100 | C157: Примања од продаје робних резерви | E157: 0
A158: 5117 | B158: 822000 | C158: ПРИМАЊА ОД ПРОДАЈЕ ЗАЛИХА ПРОИЗВОДЊЕ (5118) | D158: =D159 -> 0 | E158: 0 | F158: =F159 -> 0 | G158: 0 | H158: 0 | I158: 0 | J158: 0 | K158: 0
A159: 5118 | B159: 822100 | C159: Примања од продаје залиха производње | E159: 0
A160: 5119 | B160: 823000 | C160: ПРИМАЊА ОД ПРОДАЈЕ РОБЕ ЗА ДАЉУ ПРОДАЈУ (5120) | D160: =D161 -> 0 | E160: 0 | F160: =F161 -> 0 | G160: 0 | H160: 0 | I160: 0 | J160: 0 | K160: 0
A161: 5120 | B161: 823100 | C161: Примања од продаје робе за даљу продају | E161: 0
A162: 5121 | B162: 830000 | C162: ПРИМАЊА ОД ПРОДАЈЕ ДРАГОЦЕНОСТИ (5122) | D162: =D163 -> 0 | E162: 0 | F162: =F163 -> 0 | G162: 0 | H162: 0 | I162: 0 | J162: 0 | K162: 0
A163: 5122 | B163: 831000 | C163: ПРИМАЊА ОД ПРОДАЈЕ ДРАГОЦЕНОСТИ (5123) | D163: =D164 -> 0 | E163: 0 | F163: 0 | G163: 0 | H163: 0 | I163: 0 | J163: 0 | K163: 0
A164: 5123 | B164: 831100 | C164: Примања од продаје драгоцености | E164: 0
A165: 5124 | B165: 840000 | C165: ПРИМАЊА ОД ПРОДАЈЕ ПРИРОДНЕ ИМОВИНЕ (5125 + 5127 + 5129) | D165: =D166+D168+D174 -> 0 | E165: 0 | F165: =F166+F168+F174 -> 0 | G165: 0 | H165: 0 | I165: 0 | J165: 0 | K165: 0
A166: 5125 | B166: 841000 | C166: ПРИМАЊА ОД ПРОДАЈЕ ЗЕМЉИШТА (5126) | D166: =D167 -> 0 | E166: 0 | F166: =F167 -> 0 | G166: 0 | H166: 0 | I166: 0 | J166: 0 | K166: 0
A167: 5126 | B167: 841100 | C167: Примања од продаје земљишта | E167: 0
A168: 5127 | B168: 842000 | C168: ПРИМАЊА ОД ПРОДАЈЕ ПОДЗЕМНИХ БЛАГА (5128) | D168: =D173 -> 0 | E168: 0 | F168: =F173 -> 0 | G168: 0 | H168: 0 | I168: 0 | J168: 0 | K168: 0
A169: Ознака ОП | B169: Број конта | C169: Опис | D169: Износ планираних прихода и примања | E169: Износ остварених прихода и примања
E170: Укупно (од 6 до 11) | F170: Приходи и примања из буџета | J170: Из донација и помоћи | K170: Из осталих извора
F171: Републике | G171: Аутономне покрајине | H171: Општине / града | I171: ООСО
A172: 1 | B172: 2 | C172: 3 | D172: 4 | E172: 5 | F172: 6 | G172: 7 | H172: 8 | I172: 9 | J172: 10 | K172: 11
A173: 5128 | B173: 842100 | C173: Примања од продаје подземних блага | E173: 0
A174: 5129 | B174: 843000 | C174: ПРИМАЊА ОД ПРОДАЈЕ ШУМА И ВОДА (5130) | D174: =D175 -> 0 | E174: 0 | F174: =F175 -> 0 | G174: 0 | H174: 0 | I174: 0 | J174: 0 | K174: 0
A175: 5130 | B175: 843100 | C175: Примања од продаје шума и вода | E175: 0
A176: 5131 | B176: 900000 | C176: ПРИМАЊА ОД ЗАДУЖИВАЊА И ПРОДАЈЕ ФИНАНСИЈСКЕ ИМОВИНЕ (5132 + 5151) | D176: =D177+D200 -> 0 | E176: =SUM(F176:K176) -> 0 | F176: =F177+F200 -> 0 | G176: 0 | H176: 0 | I176: 0 | J176: 0 | K176: 0
A177: 5132 | B177: 910000 | C177: ПРИМАЊА ОД ЗАДУЖИВАЊА (5133 + 5143) | D177: =D178+D188 -> 0 | E177: 0 | F177: =F178+F188 -> 0 | G177: 0 | H177: 0 | I177: 0 | J177: 0 | K177: 0
A178: 5133 | B178: 911000 | C178: ПРИМАЊА ОД ДОМАЋИХ ЗАДУЖИВАЊА (од 5134 до 5142) | D178: =SUM(D179:D187) -> 0 | E178: 0 | F178: =SUM(F179:F187) -> 0 | G178: 0 | H178: 0 | I178: 0 | J178: 0 | K178: 0
A179: 5134 | B179: 911100 | C179: Примања од емитовања домаћих хартија од вредности, изузев акција | E179: 0
A180: 5135 | B180: 911200 | C180: Примања од задуживања од осталих нивоа власти | E180: 0
A181: 5136 | B181: 911300 | C181: Примања од задуживања од јавних финансијских институција у земљи | E181: 0
A182: 5137 | B182: 911400 | C182: Примања од задуживања од пословних банака у земљи | E182: 0
A183: 5138 | B183: 911500 | C183: Примања од задуживања код осталих поверилаца у земљи | E183: 0
A184: 5139 | B184: 911600 | C184: Примања од задуживања од домаћинстава у земљи | E184: 0
A185: 5140 | B185: 911700 | C185: Примања од домаћих финансијских деривата | E185: 0
A186: 5141 | B186: 911800 | C186: Примања од домаћих меница | E186: 0
A187: 5142 | B187: 911900 | C187: Исправка унутрашњег дуга | E187: 0
A188: 5143 | B188: 912000 | C188: ПРИМАЊА ОД ИНОСТРАНОГ ЗАДУЖИВАЊА (од 5144 до 5150) | D188: =SUM(D189:D199) -> 0 | E188: 0 | F188: =SUM(F189:F199) -> 0 | G188: 0 | H188: 0 | I188: 0 | J188: 0 | K188: 0
A189: 5144 | B189: 912100 | C189: Примања од емитовања хартија од вредности, изузев акција, на иностраном финансијском тржишту | E189: 0
A190: 5145 | B190: 912200 | C190: Примања од задуживања од иностраних држава | E190: 0
A191: 5146 | B191: 912300 | C191: Примања од задуживања од мултилатералних институција | E191: 0
A192: 5147 | B192: 912400 | C192: Примања од задуживања од иностраних пословних банака | E192: 0
A193: 5148 | B193: 912500 | C193: Примања од задуживања од осталих иностраних поверилаца | E193: 0
A194: 5149 | B194: 912600 | C194: Примања од иностраних финансијских деривата | E194: 0
A195: Ознака ОП | B195: Број конта | C195: Опис | D195: Износ планираних прихода и примања | E195: Износ остварених прихода и примања
E196: Укупно (од 6 до 11) | F196: Приходи и примања из буџета | J196: Из донација и помоћи | K196: Из осталих извора
F197: Републике | G197: Аутономне покрајине | H197: Општине / града | I197: ООСО
A198: 1 | B198: 2 | C198: 3 | D198: 4 | E198: 5 | F198: 6 | G198: 7 | H198: 8 | I198: 9 | J198: 10 | K198: 11
A199: 5150 | B199: 912900 | C199: Исправка спољног дуга | E199: 0
A200: 5151 | B200: 920000 | C200: ПРИМАЊА ОД ПРОДАЈЕ ФИНАНСИЈСКЕ ИМОВИНЕ (5152 + 5162) | D200: =D201+D211 -> 0 | E200: 0 | F200: =F201+F211 -> 0 | G200: 0 | H200: 0 | I200: 0 | J200: 0 | K200: 0
A201: 5152 | B201: 921000 | C201: ПРИМАЊА ОД ПРОДАЈЕ ДОМАЋЕ ФИНАНСИЈСКЕ ИМОВИНЕ (од 5153 до 5161) | D201: =SUM(D202:D210) -> 0 | E201: 0 | F201: =SUM(F202:F210) -> 0 | G201: 0 | H201: 0 | I201: 0 | J201: 0 | K201: 0
A202: 5153 | B202: 921100 | C202: Примања од продаје домаћих хартија од вредности, изузев акција | E202: 0
A203: 5154 | B203: 921200 | C203: Примања од отплате кредита датих осталим нивоима власти | E203: 0
A204: 5155 | B204: 921300 | C204: Примања од отплате кредита датих домаћим јавним финансијским институцијама | E204: 0
A205: 5156 | B205: 921400 | C205: Примања од отплате кредита домаћим пословним банкама | E205: 0
... 346 more rows

Sheet K9OOSO
A1: РЕПУБЛИЧКИ ФОНД ЗА ЗДРАВСТВЕНО | E1: К9ООСО
A2: ОСИГУРАЊЕ - БЕОГРАД
A3: Јована Мариновића 2
C5: ОДСТУПАЊА ОД НОВЧАНОГ ТОКА У ПЕРИОДУ 01.01.- 30.06.2026. ГОДИНЕ
A7: ="ФИЛИЈАЛА: " & Filijala -> ФИЛИЈАЛА: 05 СОМБОР
A8: ="ЗДРАВСТВЕНА УСТАНОВА: " & ZU -> ЗДРАВСТВЕНА УСТАНОВА: 100205007 ДЗ СОМБОР
E10: у хиљадама (000) динара
A11: Р. Бр. | C11: ОПИС | D11: КОЛОНА УКУПНО | E11: КОЛОНА 9 ООСО
A12: 1 | B12: 2 | C12: 3 | D12: 4 | E12: 5
A13: 1. | C13: ПОЧЕТНО СТАЊЕ СРЕДСТАВА НА ДАН 01.01.2026.Г. | D13: =D14+D15 -> 36740 | E13: =E14+E15 -> 591
B14: 1.1. | C14: Почетно стање средстава на подрачунима (група 121000) | D14: 36740 | E14: 591
B15: 1.2. | C15: Почетно стање средстава у благајни (група 121000)
A16: 2. | C16: НОВЧАНИ ПРИЛИВИ У ПЕРИОДУ 01.01.-30.06.2026.Г. | D16: =D17+D18+D19 -> 598736 | E16: =E17+E18+E19 -> 563659
B17: 2.1. | C17: Приходи и примања који се исказују у обрасцу бр. 5.(класе 700000, 800000 и 900000) | D17: 598736 | E17: 563659
B18: 2.2. | C18: Новчани приливи по основу наплаћеног ПДВ-а
B19: 2.3. | C19: Остали новчани приливи који нису исказани на класама у обрасцу бр. 5.
A20: 3. | C20: НОВЧАНИ ОДЛИВИ У ПЕРИОДУ 01.01.-30.06.2026.Г. | D20: =D21+D22+D23 -> 610796 | E20: =E21+E22+E23 -> 562816
B21: 3.1. | C21: Расходи и издаци који се исказују у обрасцу бр.5. (класе 400000, 500000 и 600000) | D21: 610796 | E21: 562816
B22: 3.2. | C22: Новчани одливи по основу плаћеног ПДВ-а
B23: 3.3. | C23: Остали новчани одливи који нису исказани на класама у обрасцу бр. 5.
A24: 4. | C24: САЛДО СРЕДСТАВА НА ДАН 30.06.2026.г. (4 = (1+ 2- 3) = (4.1 + 4.2)) | D24: =D13+D16-D20 -> 24680 | E24: =E13+E16-E20 -> 1434
B25: 4.1. | C25: Салдо средстава на подрачунима (група 121000) | D25: 24680 | E25: 1434
B26: 4.2. | C26: Салдо средстава у благајни (група 121000)
C28: =+IF(D25+D26=D24,"","Грешка, збир 4.1 и 4.2 није једнак салду средстава у колони 4") -> 
C29: =+IF(E25+E26=E24,"","Грешка, збир 4.1 и 4.2 није једнак салду средстава у колони 5") -> 
C30: =+IF((ObrazacIB!E23+ObrazacIB!E147+ObrazacIB!E176)=K9OOSO!D17," ","Грешка, подаци о приходима и примањима у колони 4 нису усклађени са Обрасцем ИБ !!!") -> 
C31: =+IF((ObrazacIB!I23+ObrazacIB!I147+ObrazacIB!I176)=K9OOSO!E17," ","Грешка, подаци о приходима и примањима у колони 5 нису усклађени са Обрасцем ИБ !!!") -> 
C32: =+IF((ObrazacIB!E234+ObrazacIB!E430+ObrazacIB!E480-ObrazacIB!E310)=K9OOSO!D21," ","Грешка, подаци о расходима и издацима у колони 4 нису усклађени са Обрасцем 5 !!!") -> 
C33: =+IF((ObrazacIB!I234+ObrazacIB!I430+ObrazacIB!I480)=K9OOSO!E21," ","Грешка, подаци о расходима и издацима у колони 5 нису усклађени са Обрасцем 5 !!!") -> 

Sheet OZPR
A1: РЕПУБЛИЧКИ ФОНД ЗА ЗДРАВСТВЕНО
A2: ОСИГУРАЊЕ - БЕОГРАД | H2: ОЗПР
A3: Јована Мариновића 2
A7: ="ФИЛИЈАЛА: " & Filijala -> ФИЛИЈАЛА: 05 СОМБОР
A8: ="ЗДРАВСТВЕНА УСТАНОВА: " & ZU -> ЗДРАВСТВЕНА УСТАНОВА: 100205007 ДЗ СОМБОР
A14: ОБРАЗАЦ ЗА ПАРТИЦИПАЦИЈУ И РЕФУНДАЦИЈЕ
A15: у периоду од 01.01.2026. - 30.06.2026. године
A16: I. УКУПНИ ПРИХОДИ И ПРИМАЊА
J17: у хиљадама (000) динара
A18: Ознака ОП | B18: Број конта | C18: Опис | D18: Приходи по основу партиципације за услуге здравствене заштите и рефундација | E18: Приходи по основу партиципације за лекове издате на рецепт и помагала издатa на налог и рефундација | F18: Приходи по основу укупне партиципације и рефундација | G18: Приход од НСЗ | H18: Приход од Фонда ПИО | I18: Приход од Фонда СОВО | J18: УКУПНО
A21: 1 | B21: 2 | C21: 3 | D21: 4 | E21: 5 | F21: 6=4+5 | G21: 7 | H21: 8 | I21: 9 | J21: 10=6+7+8+9
A22: 5001 | C22: ТЕКУЋИ ПРИХОДИ И ПРИМАЊА ОД ПРОДАЈЕ НЕФИНАНСИЈСКЕ ИМОВИНЕ (5002) | D22: =D23 -> 1643 | E22: =E23 -> 0 | F22: =D22+E22 -> 1643 | G22: =G23 -> 0 | H22: =H23 -> 0 | I22: =I23 -> 0 | J22: =+F22+G22+H22+I22 -> 1643
A23: 5002 | B23: 700000 | C23: ТЕКУЋИ ПРИХОДИ (5003 + 5047 + 5057 + 5069 + 5094 + 5099 + 5103) | D23: =D24+D29 -> 1643 | E23: =E24+E29 -> 0 | F23: 1643 | G23: =G24+G29 -> 0 | H23: =H24+H29 -> 0 | I23: =I24+I29 -> 0 | J23: 1643
A24: 5094 | B24: 770000 | C24: МЕМОРАНДУМСКЕ СТАВКЕ ЗА РЕФУНДАЦИЈУ РАСХОДА (5095 + 5097) | D24: =D25+D27 -> 0 | E24: =E25+E27 -> 0 | F24: 0 | G24: =G25+G27 -> 0 | H24: =H25+H27 -> 0 | I24: =I25+I27 -> 0 | J24: 0
A25: 5095 | B25: 771000 | C25: МЕМОРАНДУМСКЕ СТАВКЕ ЗА РЕФУНДАЦИЈУ РАСХОДА (5096) | D25: =D26 -> 0 | E25: =E26 -> 0 | F25: 0 | G25: =+G26 -> 0 | H25: =H26 -> 0 | I25: =I26 -> 0 | J25: 0
A26: 5096 | B26: 771100 | C26: Меморандумске ставке за рефундацију расхода | F26: 0 | J26: 0
A27: 5097 | B27: 772000 | C27: МЕМОРАНДУМСКЕ СТАВКЕ ЗА РЕФУНДАЦИЈУ РАСХОДА ИЗ ПРЕТХОДНЕ ГОДИНЕ (5098) | D27: =D28 -> 0 | E27: =E28 -> 0 | F27: 0 | G27: =G28 -> 0 | H27: =H28 -> 0 | I27: =I28 -> 0 | J27: 0
A28: 5098 | B28: 772100 | C28: Меморандумске ставке за рефундацију расхода из претходне године | F28: 0 | J28: 0
A29: 5099 | B29: 780000 | C29: ТРАНСФЕРИ ИЗМЕЂУ БУЏЕТСКИХ КОРИСНИКА НА ИСТОМ НИВОУ (5100) | D29: =D30 -> 1643 | E29: =E30 -> 0 | F29: 1643 | G29: =G30 -> 0 | H29: 0 | I29: 0 | J29: 1643
A30: 5100 | B30: 781000 | C30: ТРАНСФЕРИ ИЗМЕЂУ БУЏЕТСКИХ КОРИСНИКА НА ИСТОМ НИВОУ (5101 + 5102) | D30: =D31 -> 1643 | E30: =E31 -> 0 | F30: 1643 | G30: 0 | H30: 0 | I30: 0 | J30: 1643
A31: 5101 | B31: 781100 | C31: Трансфери између буџетских корисника на истом нивоу | D31: 1643 | F31: 1643 | J31: 1643
A32: 5171 | C32: УКУПНИ ПРИХОДИ И ПРИМАЊА (5001) | D32: =D22 -> 1643 | E32: =E22 -> 0 | F32: 1643 | G32: =G22 -> 0 | H32: =H22 -> 0 | I32: =I22 -> 0 | J32: 1643
A35: II. УКУПНИ РАСХОДИ И ИЗДАЦИ
J36: у хиљадама (000) динара
A37: Ознака ОП | B37: Број конта | C37: Опис | D37: Расходи из партиципације за услуге здравствене заштите и рефундација | E37: Расходи из партиципације за лекове издате на рецепт и помагала издатa на налог и рефундација | F37: Расходи из укупне партиципације и рефундација | G37: Расход од НСЗ | H37: Расход од Фонда ПИО | I37: Приход од Фонда СОВО | J37: УКУПНО
A40: 1 | B40: 2 | C40: 3 | D40: 4 | E40: 5 | F40: 6=4+5 | G40: 7 | H40: 8 | I40: 9 | J40: 10=6+7+8+9
A41: 5172 | C41: ТЕКУЋИ РАСХОДИ И ИЗДАЦИ ЗА НЕФИНАНСИЈСКЕ ИМОВИНЕ (5173 + 5341) | D41: =D42+D210 -> 1272 | E41: 0 | F41: =D41+E41 -> 1272 | G41: 0 | H41: 0 | I41: 0 | J41: =+F41+G41+H41+I41 -> 1272
A42: 5173 | B42: 400000 | C42: ТЕКУЋИ РАСХОДИ (5174 + 5196 + 5241 + 5256 + 5280 + 5293 + 5309 + 5324) | D42: =D43+D65+D110+D125+D149+D162+D178+D193 -> 1272 | E42: 0 | F42: 1272 | G42: 0 | H42: 0 | I42: 0 | J42: 1272
A43: 5174 | B43: 410000 | C43: РАСХОДИ ЗА ЗАПОСЛЕНЕ (5175 + 5177 + 5181 + 5183 + 5188 + 5190 + 5192 + 5194) | D43: =D44+D46+D50+D52+D57+D59+D61+D63 -> 0 | E43: 0 | F43: 0 | G43: 0 | H43: 0 | I43: 0 | J43: 0
A44: 5175 | B44: 411000 | C44: ПЛАТЕ, ДОДАЦИ И НАКНАДЕ ЗАПОСЛЕНИХ (ЗАРАДЕ) (5176) | D44: =D45 -> 0 | E44: 0 | F44: 0 | G44: 0 | H44: 0 | I44: 0 | J44: 0
A45: 5176 | B45: 411100 | C45: Плате, додаци и накнаде запослених | F45: 0 | J45: 0
A46: 5177 | B46: 412000 | C46: СОЦИЈАЛНИ ДОПРИНОСИ НА ТЕРЕТ ПОСЛОДАВЦА (од 5178 до 5180) | D46: =SUM(D47:D49) -> 0 | E46: 0 | F46: 0 | G46: 0 | H46: 0 | I46: 0 | J46: 0
A47: 5178 | B47: 412100 | C47: Допринос за пензијско и инвалидско осигурање | F47: 0 | J47: 0
A48: 5179 | B48: 412200 | C48: Допринос за здравствено осигурање | F48: 0 | J48: 0
A49: 5180 | B49: 412300 | C49: Допринос за незапосленост | F49: 0 | J49: 0
A50: 5181 | B50: 413000 | C50: НАКНАДЕ У НАТУРИ (5182) | D50: =D51 -> 0 | E50: 0 | F50: 0 | G50: 0 | H50: 0 | I50: 0 | J50: 0
A51: 5182 | B51: 413100 | C51: Накнаде у натури | F51: 0 | J51: 0
A52: 5183 | B52: 414000 | C52: СОЦИЈАЛНА ДАВАЊА ЗАПОСЛЕНИМА (од 5184 до 5187) | D52: =SUM(D53:D56) -> 0 | E52: 0 | F52: 0 | G52: 0 | H52: 0 | I52: 0 | J52: 0
A53: 5184 | B53: 414100 | C53: Исплата накнада за време одсуствовања с посла на терет фондова | F53: 0 | J53: 0
A54: 5185 | B54: 414200 | C54: Расходи за образовање деце запослених | F54: 0 | J54: 0
A55: 5186 | B55: 414300 | C55: Отпремнине и помоћи | F55: 0 | J55: 0
A56: 5187 | B56: 414400 | C56: Помоћ у медицинском лечењу запосленог или чланова уже породице и друге помоћи запосленом | F56: 0 | J56: 0
A57: 5188 | B57: 415000 | C57: НАКНАДА ТРОШКОВА ЗА ЗАПОСЛЕНЕ (5189) | D57: =D58 -> 0 | E57: 0 | F57: 0 | G57: 0 | H57: 0 | I57: 0 | J57: 0
A58: 5189 | B58: 415100 | C58: Накнаде трошкова за запослене | F58: 0 | J58: 0
A59: 5190 | B59: 416000 | C59: НАГРАДЕ ЗАПОСЛЕНИМА И ОСТАЛИ ПОСЕБНИ РАСХОДИ (5191) | D59: =D60 -> 0 | E59: 0 | F59: 0 | G59: 0 | H59: 0 | I59: 0 | J59: 0
A60: 5191 | B60: 416100 | C60: Награде запосленима и остали посебни расходи | F60: 0 | J60: 0
A61: 5192 | B61: 417000 | C61: ПОСЛАНИЧКИ ДОДАТАК (5193) | D61: =D62 -> 0 | E61: 0 | F61: 0 | G61: 0 | H61: 0 | I61: 0 | J61: 0
A62: 5193 | B62: 417100 | C62: Посланички додатак | F62: 0 | J62: 0
A63: 5194 | B63: 418000 | C63: СУДИЈСКИ ДОДАТАК (5195) | D63: =D64 -> 0 | E63: 0 | F63: 0 | G63: 0 | H63: 0 | I63: 0 | J63: 0
A64: 5195 | B64: 418100 | C64: Судијски додатак | F64: 0 | J64: 0
A65: 5196 | B65: 420000 | C65: КОРИШЋЕЊЕ УСЛУГА И РОБА (5197 + 5205 + 5211 + 5220 + 5228 + 5231) | D65: =D66+D74+D80+D89+D97+D100 -> 1242 | E65: 0 | F65: 1242 | G65: 0 | H65: 0 | I65: 0 | J65: 1242
A66: 5197 | B66: 421000 | C66: СТАЛНИ ТРОШКОВИ (од 5198 до 5204) | D66: =SUM(D67:D73) -> 614 | E66: 0 | F66: 614 | G66: 0 | H66: 0 | I66: 0 | J66: 614
A67: 5198 | B67: 421100 | C67: Трошкови платног промета и банкарских услуга | D67: 614 | F67: 614 | J67: 614
A68: 5199 | B68: 421200 | C68: Енергетске услуге | F68: 0 | J68: 0
A69: 5200 | B69: 421300 | C69: Комуналне услуге | F69: 0 | J69: 0
A70: 5201 | B70: 421400 | C70: Услуге комуникација | F70: 0 | J70: 0
A71: 5202 | B71: 421500 | C71: Трошкови осигурања | F71: 0 | J71: 0
A72: 5203 | B72: 421600 | C72: Закуп имовине и опреме | F72: 0 | J72: 0
A73: 5204 | B73: 421900 | C73: Остали трошкови | F73: 0 | J73: 0
A74: 5205 | B74: 422000 | C74: ТРОШКОВИ ПУТОВАЊА (од 5206 до 5210) | D74: =SUM(D75:D79) -> 584 | E74: 0 | F74: 584 | G74: 0 | H74: 0 | I74: 0 | J74: 584
A75: 5206 | B75: 422100 | C75: Трошкови службених путовања у земљи | D75: 584 | F75: 584 | J75: 584
A76: 5207 | B76: 422200 | C76: Трошкови службених путовања у иностранство | F76: 0 | J76: 0
A77: 5208 | B77: 422300 | C77: Трошкови путовања у оквиру редовног рада | F77: 0 | J77: 0
A78: 5209 | B78: 422400 | C78: Трошкови путовања ученика | F78: 0 | J78: 0
A79: 5210 | B79: 422900 | C79: Остали трошкови транспорта | F79: 0 | J79: 0
A80: 5211 | B80: 423000 | C80: УСЛУГЕ ПО УГОВОРУ (од 5212 до 5219) | D80: =SUM(D81:D88) -> 24 | E80: 0 | F80: 24 | G80: 0 | H80: 0 | I80: 0 | J80: 24
A81: 5212 | B81: 423100 | C81: Административне услуге | F81: 0 | J81: 0
A82: 5213 | B82: 423200 | C82: Компјутерске услуге | F82: 0 | J82: 0
A83: 5214 | B83: 423300 | C83: Услуге образовања и усавршавања запослених | D83: 24 | F83: 24 | J83: 24
A84: 5215 | B84: 423400 | C84: Услуге информисања | F84: 0 | J84: 0
A85: 5216 | B85: 423500 | C85: Стручне услуге | F85: 0 | J85: 0
A86: 5217 | B86: 423600 | C86: Услуге за домаћинство и угоститељство | F86: 0 | J86: 0
A87: 5218 | B87: 423700 | C87: Репрезентација | F87: 0 | J87: 0
A88: 5219 | B88: 423900 | C88: Остале опште услуге | F88: 0 | J88: 0
A89: 5220 | B89: 424000 | C89: СПЕЦИЈАЛИЗОВАНЕ УСЛУГЕ (од 5221 до 5227) | D89: =SUM(D90:D96) -> 0 | E89: 0 | F89: 0 | G89: 0 | H89: 0 | I89: 0 | J89: 0
A90: 5221 | B90: 424100 | C90: Пољопривредне услуге | F90: 0 | J90: 0
A91: 5222 | B91: 424200 | C91: Услуге образовања, културе и спорта | F91: 0 | J91: 0
A92: 5223 | B92: 424300 | C92: Медицинске услуге | F92: 0 | J92: 0
A93: 5224 | B93: 424400 | C93: Услуге одржавања аутопутева | F93: 0 | J93: 0
A94: 5225 | B94: 424500 | C94: Услуге одржавања националних паркова и природних површина | F94: 0 | J94: 0
A95: 5226 | B95: 424600 | C95: Услуге очувања животне средине, науке и геодетске услуге | F95: 0 | J95: 0
A96: 5227 | B96: 424900 | C96: Остале специјализоване услуге | F96: 0 | J96: 0
A97: 5228 | B97: 425000 | C97: ТЕКУЋЕ ПОПРАВКЕ И ОДРЖАВАЊЕ (5229 + 5230) | D97: =D98+D99 -> 0 | E97: 0 | F97: 0 | G97: 0 | H97: 0 | I97: 0 | J97: 0
A98: 5229 | B98: 425100 | C98: Текуће поправке и одржавање зграда и објеката | F98: 0 | J98: 0
A99: 5230 | B99: 425200 | C99: Текуће поправке и одржавање опреме | F99: 0 | J99: 0
A100: 5231 | B100: 426000 | C100: МАТЕРИЈАЛ (од 5232 до 5240) | D100: =SUM(D101:D109) -> 20 | E100: 0 | F100: 20 | G100: 0 | H100: 0 | I100: 0 | J100: 20
A101: 5232 | B101: 426100 | C101: Административни материјал | F101: 0 | J101: 0
A102: 5233 | B102: 426200 | C102: Материјали за пољопривреду | F102: 0 | J102: 0
A103: 5234 | B103: 426300 | C103: Материјали за образовање и усавршавање запослених | F103: 0 | J103: 0
A104: 5235 | B104: 426400 | C104: Материјали за саобраћај | F104: 0 | J104: 0
A105: 5236 | B105: 426500 | C105: Материјали за очување животне средине и науку | F105: =D105+E105 -> 0 | J105: =+F105+G105+H105+I105 -> 0
A106: 5237 | B106: 426600 | C106: Материјали за образовање, културу и спорт | F106: 0 | J106: 0
A107: 5238 | B107: 426700 | C107: Медицински и лабораторијски материјали | D107: 20 | F107: 20 | J107: 20
A108: 5239 | B108: 426800 | C108: Материјали за одржавање хигијене и угоститељство | F108: 0 | J108: 0
A109: 5240 | B109: 426900 | C109: Материјали за посебне намене | F109: 0 | J109: 0
A110: 5241 | B110: 430000 | C110: АМОРТИЗАЦИЈА И УПОТРЕБА СРЕДСТАВА ЗА РАД (5242 + 5246 + 5248 + 5250 + 5254) | D110: =D111+D115+D117+D119+D123 -> 0 | E110: 0 | F110: 0 | G110: 0 | H110: 0 | I110: 0 | J110: 0
A111: 5242 | B111: 431000 | C111: АМОРТИЗАЦИЈА НЕКРЕТНИНА И ОПРЕМЕ (од 5243 до 5245) | D111: =SUM(D112:D114) -> 0 | E111: 0 | F111: 0 | G111: 0 | H111: 0 | I111: 0 | J111: 0
A112: 5243 | B112: 431100 | C112: Амортизација зграда и грађевинскиx објеката | F112: 0 | J112: 0
A113: 5244 | B113: 431200 | C113: Амортизација опреме | F113: 0 | J113: 0
A114: 5245 | B114: 431300 | C114: Амортизација осталих некретнина и опреме | F114: 0 | J114: 0
A115: 5246 | B115: 432000 | C115: АМОРТИЗАЦИЈА КУЛТИВИСАНЕ ИМОВИНЕ (5247) | D115: =D116 -> 0 | E115: 0 | F115: 0 | G115: 0 | H115: 0 | I115: 0 | J115: 0
A116: 5247 | B116: 432100 | C116: Амортизација култивисане опреме | F116: 0 | J116: 0
A117: 5248 | B117: 433000 | C117: УПОТРЕБА ДРАГОЦЕНОСТИ (5249) | D117: =D118 -> 0 | E117: 0 | F117: 0 | G117: 0 | H117: 0 | I117: 0 | J117: 0
A118: 5249 | B118: 433100 | C118: Употреба драгоцености | F118: 0 | J118: 0
A119: 5250 | B119: 434000 | C119: УПОТРЕБА ПРИРОДНЕ ИМОВИНЕ (од 5251 до 5253) | D119: =SUM(D120:D122) -> 0 | E119: 0 | F119: 0 | G119: 0 | H119: 0 | I119: 0 | J119: 0
A120: 5251 | B120: 434100 | C120: Употреба земљишта | F120: 0 | J120: 0
A121: 5252 | B121: 434200 | C121: Употреба подземног блага | F121: 0 | J121: 0
A122: 5253 | B122: 434300 | C122: Употреба шума и вода | F122: 0 | J122: 0
A123: 5254 | B123: 435000 | C123: АМОРТИЗАЦИЈА НЕМАТЕРИЈАЛНЕ ИМОВИНЕ (5255) | D123: =D124 -> 0 | E123: 0 | F123: 0 | G123: 0 | H123: 0 | I123: 0 | J123: 0
A124: 5255 | B124: 435100 | C124: Амортизација нематеријалне имовине | F124: 0 | J124: 0
A125: 5256 | B125: 440000 | C125: ОТПЛАТА КАМАТА И ПРАТЕЋИ ТРОШКОВИ ЗАДУЖИВАЊА (5257 + 5267 + 5274 + 5276) | D125: =D126+D136+D143+D145 -> 0 | E125: 0 | F125: 0 | G125: 0 | H125: 0 | I125: 0 | J125: 0
A126: 5257 | B126: 441000 | C126: ОТПЛАТЕ ДОМАЋИХ КАМАТА (од 5258 до 5266) | D126: =SUM(D127:D135) -> 0 | E126: 0 | F126: 0 | G126: 0 | H126: 0 | I126: 0 | J126: 0
A127: 5258 | B127: 441100 | C127: Отплата камата на домаће хартије од вредности | F127: 0 | J127: 0
A128: 5259 | B128: 441200 | C128: Отплата камата осталим нивоима власти | F128: 0 | J128: 0
A129: 5260 | B129: 441300 | C129: Отплата камата домаћим јавним финансијским институцијама | F129: 0 | J129: 0
A130: 5261 | B130: 441400 | C130: Отплата камата домаћим пословним банкама | F130: 0 | J130: 0
A131: 5262 | B131: 441500 | C131: Отплата камата осталим домаћим кредиторима | F131: 0 | J131: 0
A132: 5263 | B132: 441600 | C132: Отплата камата домаћинствима у земљи | F132: 0 | J132: 0
A133: 5264 | B133: 441700 | C133: Отплата камата на домаће финансијске деривате | F133: 0 | J133: 0
A134: 5265 | B134: 441800 | C134: Отплата камата на домаће менице | F134: 0 | J134: 0
A135: 5266 | B135: 441900 | C135: Финансијске промене на финансијским лизинзима | F135: 0 | J135: 0
A136: 5267 | B136: 442000 | C136: ОТПЛАТА СТРАНИХ КАМАТА (од 5268 до 5273) | D136: =SUM(D137:D142) -> 0 | E136: 0 | F136: 0 | G136: 0 | H136: 0 | I136: 0 | J136: 0
A137: 5268 | B137: 442100 | C137: Отплата камата на хартије од вредности емитоване на иностраном финансијском тржишту | F137: 0 | J137: 0
A138: 5269 | B138: 442200 | C138: Отплата камата страним владама | F138: 0 | J138: 0
A139: 5270 | B139: 442300 | C139: Отплата камата мултилатералним институцијама | F139: 0 | J139: 0
A140: 5271 | B140: 442400 | C140: Отплата камата страним пословним банкама | F140: 0 | J140: 0
A141: 5272 | B141: 442500 | C141: Отплата камата осталим страним кредиторима | F141: 0 | J141: 0
A142: 5273 | B142: 442600 | C142: Отплата камата на стране финансијске деривате | F142: 0 | J142: 0
A143: 5274 | B143: 443000 | C143: ОТПЛАТА КАМАТА ПО ГАРАНЦИЈАМА (5275) | D143: =D144 -> 0 | E143: 0 | F143: 0 | G143: 0 | H143: 0 | I143: 0 | J143: 0
A144: 5275 | B144: 443100 | C144: Отплата камата по гаранцијама | F144: 0 | J144: 0
A145: 5276 | B145: 444000 | C145: ПРАТЕЋИ ТРОШКОВИ ЗАДУЖИВАЊА (од 5277 до 5279) | D145: =SUM(D146:D148) -> 0 | E145: 0 | F145: 0 | G145: 0 | H145: 0 | I145: 0 | J145: 0
A146: 5277 | B146: 444100 | C146: Негативне курсне разлике | F146: 0 | J146: 0
A147: 5278 | B147: 444200 | C147: Казне за кашњење | F147: 0 | J147: 0
A148: 5279 | B148: 444300 | C148: Остали пратећи трошкови задуживања | F148: 0 | J148: 0
A149: 5280 | B149: 450000 | C149: СУБВЕНЦИЈЕ (5281 + 5284 + 5287 + 5290) | D149: =D150+D153+D156+D159 -> 0 | E149: 0 | F149: 0 | G149: 0 | H149: 0 | I149: 0 | J149: 0
A150: 5281 | B150: 451000 | C150: СУБВЕНЦИЈЕ ЈАВНИМ НЕФИНАНСИЈСКИМ ПРЕДУЗЕЋИМА И ОРГАНИЗАЦИЈАМА (5282 + 5283) | D150: =D151+D152 -> 0 | E150: 0 | F150: 0 | G150: 0 | H150: 0 | I150: 0 | J150: 0
A151: 5282 | B151: 451100 | C151: Текуће субвенције јавним нефинансијским предузећима и организацијама | F151: 0 | J151: 0
A152: 5283 | B152: 451200 | C152: Капиталне субвенције јавним нефинансијским предузећима и организацијама | F152: 0 | J152: 0
A153: 5284 | B153: 452000 | C153: СУБВЕНЦИЈЕ ПРИВАТНИМ ФИНАНСИЈСКИМ ИНСТИТУЦИЈАМА (5285 + 5286) | D153: =D154+D155 -> 0 | E153: 0 | F153: 0 | G153: 0 | H153: 0 | I153: 0 | J153: 0
A154: 5285 | B154: 452100 | C154: Текуће субвенције приватним финансијским институцијама | F154: 0 | J154: 0
A155: 5286 | B155: 452200 | C155: Капиталне субвенције приватним финансијским институцијама | F155: 0 | J155: 0
A156: 5287 | B156: 453000 | C156: СУБВЕНЦИЈЕ ЈАВНИМ ФИНАНСИЈСКИМ ИНСТИТУЦИЈАМА (5288 + 5289) | D156: =D157+D158 -> 0 | E156: 0 | F156: 0 | G156: 0 | H156: 0 | I156: 0 | J156: 0
A157: 5288 | B157: 453100 | C157: Текуће субвенције јавним финансијским институцијама | F157: 0 | J157: 0
A158: 5289 | B158: 453200 | C158: Капиталне субвенције јавним финансијским институцијама | F158: 0 | J158: 0
A159: 5290 | B159: 454000 | C159: СУБВЕНЦИЈЕ ПРИВАТНИМ ПРЕДУЗЕЋИМА (5291 + 5292) | D159: =D160+D161 -> 0 | E159: 0 | F159: 0 | G159: 0 | H159: 0 | I159: 0 | J159: 0
A160: 5291 | B160: 454100 | C160: Текуће субвенције приватним предузећима | F160: 0 | J160: 0
A161: 5292 | B161: 454200 | C161: Капиталне субвенције приватним предузећима | F161: 0 | J161: 0
A162: 5293 | B162: 460000 | C162: ДОНАЦИЈЕ, ДОТАЦИЈЕ И ТРАНСФЕРИ (5294 + 5297 + 5300 + 5303 + 5306) | D162: =D163+D166+D169+D172+D175 -> 0 | E162: 0 | F162: 0 | G162: 0 | H162: 0 | I162: 0 | J162: 0
A163: 5294 | B163: 461000 | C163: ДОНАЦИЈЕ СТРАНИМ ВЛАДАМА (5295 + 5296) | D163: =D164+D165 -> 0 | E163: 0 | F163: 0 | G163: 0 | H163: 0 | I163: 0 | J163: 0
A164: 5295 | B164: 461100 | C164: Текуће донације страним владама | F164: 0 | J164: 0
A165: 5296 | B165: 461200 | C165: Капиталне донације страним владама | F165: 0 | J165: 0
A166: 5297 | B166: 462000 | C166: ДОТАЦИЈЕ МЕЂУНАРОДНИМ ОРГАНИЗАЦИЈАМА (5298 + 5299) | D166: =D167+D168 -> 0 | E166: 0 | F166: 0 | G166: 0 | H166: 0 | I166: 0 | J166: 0
A167: 5298 | B167: 462100 | C167: Текуће дотације међународним организацијама | F167: 0 | J167: 0
A168: 5299 | B168: 462200 | C168: Капиталне дотације међународним организацијама | F168: 0 | J168: 0
A169: 5300 | B169: 463000 | C169: ТРАНСФЕРИ ОСТАЛИМ НИВОИМА ВЛАСТИ (5301 + 5302) | D169: =D170+D171 -> 0 | E169: 0 | F169: =D169+E169 -> 0 | G169: 0 | H169: 0 | I169: 0 | J169: =+F169+G169+H169+I169 -> 0
A170: 5301 | B170: 463100 | C170: Текући трансфери осталим нивоима власти | F170: 0 | J170: 0
A171: 5302 | B171: 463200 | C171: Капитални трансфери осталим нивоима власти | F171: 0 | J171: 0
A172: 5303 | B172: 464000 | C172: ДОТАЦИЈЕ ОРГАНИЗАЦИЈАМА ОБАВЕЗНОГ СОЦИЈАЛНОГ ОСИГУРАЊА (5304 + 5305) | D172: =D173+D174 -> 0 | E172: 0 | F172: 0 | G172: 0 | H172: 0 | I172: 0 | J172: 0
A173: 5304 | B173: 464100 | C173: Текуће дотације организацијама обавезног социјалног осигурања | F173: 0 | J173: 0
A174: 5305 | B174: 464200 | C174: Капиталне дотације организацијама обавезног социјалног осигурања | F174: 0 | J174: 0
A175: 5306 | B175: 465000 | C175: ОСТАЛЕ ДОТАЦИЈЕ И ТРАНСФЕРИ (5307 + 5308) | D175: =D176+D177 -> 0 | E175: 0 | F175: 0 | G175: 0 | H175: 0 | I175: 0 | J175: 0
A176: 5307 | B176: 465100 | C176: Остале текуће дотације и трансфери | F176: 0 | J176: 0
A177: 5308 | B177: 465200 | C177: Остале капиталне дотације и трансфери | F177: 0 | J177: 0
A178: 5309 | B178: 470000 | C178: СОЦИЈАЛНО ОСИГУРАЊЕ И СОЦИЈАЛНА ЗАШТИТА (5310 + 5314) | D178: =D179+D183 -> 0 | E178: 0 | F178: 0 | G178: 0 | H178: 0 | I178: 0 | J178: 0
A179: 5310 | B179: 471000 | C179: ПРАВА ИЗ СОЦИЈАЛНОГ ОСИГУРАЊА (ОРГАНИЗАЦИЈЕ ОБАВЕЗНОГ СОЦИЈАЛНОГ ОСИГУРАЊА) (од 5311 до 5313) | D179: =SUM(D180:D182) -> 0 | E179: 0 | F179: 0 | G179: 0 | H179: 0 | I179: 0 | J179: 0
A180: 5311 | B180: 471100 | C180: Права из социјалног осигурања која се исплаћују непосредно домаћинствима | F180: 0 | J180: 0
A181: 5312 | B181: 471200 | C181: Права из социјалног осигурања која се исплаћују непосредно пружаоцима услуга | F181: 0 | J181: 0
A182: 5313 | B182: 471900 | C182: Трансфери другим организацијама обавезног социјалног осигурања за доприносе за осигурање | F182: 0 | J182: 0
A183: 5314 | B183: 472000 | C183: НАКНАДЕ ЗА СОЦИЈАЛНУ ЗАШТИТУ ИЗ БУЏЕТА (од 5315 до 5323) | D183: =SUM(D184:D192) -> 0 | E183: 0 | F183: 0 | G183: 0 | H183: 0 | I183: 0 | J183: 0
A184: 5315 | B184: 472100 | C184: Накнаде из буџета у случају болести и инвалидности | F184: 0 | J184: 0
A185: 5316 | B185: 472200 | C185: Накнаде из буџета за породиљско одсуство | F185: 0 | J185: 0
A186: 5317 | B186: 472300 | C186: Накнаде из буџета за децу и породицу | F186: 0 | J186: 0
A187: 5318 | B187: 472400 | C187: Накнаде из буџета за случај незапослености | F187: 0 | J187: 0
A188: 5319 | B188: 472500 | C188: Старосне и породичне пензије из буџета | F188: 0 | J188: 0
A189: 5320 | B189: 472600 | C189: Накнаде из буџета у случају смрти | F189: 0 | J189: 0
A190: 5321 | B190: 472700 | C190: Накнаде из буџета за образовање, културу, науку и спорт | F190: 0 | J190: 0
A191: 5322 | B191: 472800 | C191: Накнаде из буџета за становање и живот | F191: 0 | J191: 0
A192: 5323 | B192: 472900 | C192: Остале накнаде из буџета | F192: 0 | J192: 0
A193: 5324 | B193: 480000 | C193: ОСТАЛИ РАСХОДИ (5325 + 5328 + 5332 + 5334 + 5337 + 5339) | D193: =D194+D197+D201+D203+D206+D208 -> 30 | E193: 0 | F193: 30 | G193: 0 | H193: 0 | I193: 0 | J193: 30
A194: 5325 | B194: 481000 | C194: ДОТАЦИЈЕ НЕВЛАДИНИМ ОРГАНИЗАЦИЈАМА (5326 + 5327) | D194: =D195+D196 -> 0 | E194: 0 | F194: 0 | G194: 0 | H194: 0 | I194: 0 | J194: 0
A195: 5326 | B195: 481100 | C195: Дотације непрофитним организацијама које пружају помоћ домаћинствима | F195: 0 | J195: 0
A196: 5327 | B196: 481900 | C196: Дотације осталим непрофитним институцијама | F196: 0 | J196: 0
A197: 5328 | B197: 482000 | C197: ПОРЕЗИ, ОБАВЕЗНЕ ТАКСЕ, КАЗНЕ, ПЕНАЛИ И КАМАТЕ (од 5329 до 5331) | D197: =SUM(D198:D200) -> 30 | E197: 0 | F197: 30 | G197: 0 | H197: 0 | I197: 0 | J197: 30
A198: 5329 | B198: 482100 | C198: Остали порези | D198: 11 | F198: 11 | J198: 11
A199: 5330 | B199: 482200 | C199: Обавезне таксе | D199: 19 | F199: 19 | J199: 19
A200: 5331 | B200: 482300 | C200: Новчане казне, пенали и камате | F200: 0 | J200: 0
A201: 5332 | B201: 483000 | C201: НОВЧАНЕ КАЗНЕ И ПЕНАЛИ ПО РЕШЕЊУ СУДОВА (5333) | D201: =D202 -> 0 | E201: 0 | F201: 0 | G201: 0 | H201: 0 | I201: 0 | J201: 0
A202: 5333 | B202: 483100 | C202: Новчане казне и пенали по решењу судова | F202: 0 | J202: 0
A203: 5334 | B203: 484000 | C203: НАКНАДА ШТЕТЕ ЗА ПОВРЕДЕ ИЛИ ШТЕТУ НАСТАЛУ УСЛЕД ЕЛЕМЕНТАРНИХ НЕПОГОДА ИЛИ ДРУГИХ ПРИРОДНИХ УЗРОКА (5335 + 5336) | D203: =D204+D205 -> 0 | E203: 0 | F203: 0 | G203: 0 | H203: 0 | I203: 0 | J203: 0
A204: 5335 | B204: 484100 | C204: Накнада штете за повреде или штету насталу услед елементарних непогода | F204: 0 | J204: 0
A205: 5336 | B205: 484200 | C205: Накнада штете од дивљачи | F205: 0 | J205: 0
A206: 5337 | B206: 485000 | C206: НАКНАДА ШТЕТЕ ЗА ПОВРЕДЕ ИЛИ ШТЕТУ НАНЕТУ ОД СТРАНЕ ДРЖАВНИХ ОРГАНА (5338) | D206: =D207 -> 0 | E206: 0 | F206: 0 | G206: 0 | H206: 0 | I206: 0 | J206: 0
A207: 5338 | B207: 485100 | C207: Накнада штете за повреде или штету нанетих од стране државних органа | F207: 0 | J207: 0
A208: 5339 | B208: 489000 | C208: РАСХОДИ КОЈИ СЕ ФИНАНСИРАЈУ ИЗ СРЕДСТАВА ЗА РЕАЛИЗАЦИЈУ НАЦИОНАЛНОГ ИНВЕСТИЦИОНОГ ПЛАНА (5340) | D208: =D209 -> 0 | E208: 0 | F208: 0 | G208: 0 | H208: 0 | I208: 0 | J208: 0
A209: 5340 | B209: 489100 | C209: Расходи који се финансирају из средстава за реализацију националног инвестиционог плана | F209: 0 | J209: 0
A210: 5341 | B210: 500000 | C210: ИЗДАЦИ ЗА НЕФИНАНСИЈСКУ ИМОВИНУ (5342 + 5364 + 5373 + 5376 + 5384) | D210: =D211+D233+D242+D245+D253 -> 0 | E210: 0 | F210: 0 | G210: 0 | H210: 0 | I210: 0 | J210: 0
A211: 5342 | B211: 510000 | C211: ОСНОВНА СРЕДСТВА (5343 + 5348 + 5358 + 5360 + 5362) | D211: =D212+D217+D227+D229+D231 -> 0 | E211: 0 | F211: 0 | G211: 0 | H211: 0 | I211: 0 | J211: 0
A212: 5343 | B212: 511000 | C212: ЗГРАДЕ И ГРАЂЕВИНСКИ ОБЈЕКТИ (од 5344 до 5347) | D212: =SUM(D213:D216) -> 0 | E212: 0 | F212: 0 | G212: 0 | H212: 0 | I212: 0 | J212: 0
A213: 5344 | B213: 511100 | C213: Куповина зграда и објеката | F213: 0 | J213: 0
A214: 5345 | B214: 511200 | C214: Изградња зграда и објеката | F214: 0 | J214: 0
... 100 more rows

Sheet Transferi
A1: РЕПУБЛИЧКИ ФОНД ЗА ЗДРАВСТВЕНО | F1: ТР
A2: ОСИГУРАЊЕ - БЕОГРАД
A3: Јована Мариновића 2
A7: ="ФИЛИЈАЛА: " & Filijala -> ФИЛИЈАЛА: 05 СОМБОР
A8: ="ЗДРАВСТВЕНА УСТАНОВА: " & ZU -> ЗДРАВСТВЕНА УСТАНОВА: 100205007 ДЗ СОМБОР
A9: ТРАНСФЕРИ ИЗМЕЂУ БУЏЕТСКИХ КОРИСНИКА НА ИСТОМ НИВОУ - конто 781100 (ООСО) у периоду од 01.01.2026. - 30.06.2026. године
F10: у хиљадама (000) динара
A11: Р. бр. | B11: Назив | C11: Трансфери за услуге здравствене заштите | D11: Трансфери за лекове издате на рецепт | E11: Трансфери за помагала издата на налог | F11: УКУПНО
B12: 0 | C12: 1 | D12: 2 | E12: 3 | F12: 4=1+2+3
A13: 1 | B13: 781100 - Трансфери између буџетских корисника на истом нивоу (ООСО) | F13: =C13+D13+E13 -> 0
A15: Напомена: 1. Износ исказан у колони 4 - УКУПНО увећан за укупну партиципацију из обрасца ОЗПР (колона 6) мора бити једнак износу на ОП 5101 у колони 9 Обрасца ИБ.
A16: 2. У колону 1 - Трансфери за услуге здравствене заштите уноси се износ трансфера за здравствене услуге примарне и стоматолошке здравствене заштите у здравственим установама које имају апотеку у саставу.
A18: РАСХОДИ ЗА ЛЕКОВЕ ИЗДАТЕ НА РЕЦЕПТ И ПОМАГАЛА ИЗДАТА НА НАЛОГ у периоду од 01.01.2026. - 30.06.2026. године
C20: у хиљадама (000) динара
A21: Р. бр. | B21: Назив | C21: Лекови издати на рецепт и помагала издата на налог
B22: 0 | C22: 1
A23: 1 | B23: 426751 - Лекови на рецепт
A26: Напомена: Образац ТР попуњавају само апотеке и здравствене установе које у свом саставу имају апотеку.

Sheet TransferiFP
A1: РЕПУБЛИЧКИ ФОНД ЗА ЗДРАВСТВЕНО | I1: ТР-ФП
A2: ОСИГУРАЊЕ - БЕОГРАД
A3: Јована Мариновића 2
A7: ="ФИЛИЈАЛА: " & Filijala -> ФИЛИЈАЛА: 05 СОМБОР
A8: ="ЗДРАВСТВЕНА УСТАНОВА: " & ZU -> ЗДРАВСТВЕНА УСТАНОВА: 100205007 ДЗ СОМБОР
B10: ИЗНОС ПЛАНИРАНИХ ТРАНСФЕРА ИЗМЕЂУ БУЏЕТСКИХ КОРИСНИКА НА ИСТОМ НИВОУ
I11: у хиљадама (000) динара
A12: Р. бр. | B12: Назив | C12: Укупно | D12: Приходи и примања из буџета | H12: Из донација и помоћи | I12: Из осталих извора
D13: Републике | E13: Аутономне покрајине | F13: Општине / града | G13: ООСО
B14: 0 | C14: 1 | D14: 2 | E14: 3 | F14: 4 | G14: 5 | H14: 6 | I14: 7
A15: 1 | B15: 781100 - Трансфери између буџетских корисника на истом нивоу | C15: =SUM(D15:I15) -> 1104989 | G15: 1104989
B17: Напомена: Податак исказан у колони 1 мора да буде једнак податку исказаном на ОП позицији 5101 у колони 4 Обрасца ИБ
B19: =+IF(C15=ObrazacIB!D138,"","Грешка, износ у колони 1 није усклађен са Обрасцем 5!!!") -> 

Sheet BO
A1: РЕПУБЛИЧКИ ФОНД ЗА ЗДРАВСТВЕНО | H1: БО
A2: ОСИГУРАЊЕ - БЕОГРАД
A3: Јована Мариновића 2
A5: ОБРАЗАЦ БО - ИСПЛАЋЕНА И РЕФУНДИРАНА СРЕДСТВА КОЈА СЕ ОДНОСЕ НА НАКНАДЕ КОЈЕ СЕ ЕВИДЕНТИРАЈУ У ОКВИРУ ГРУПЕ 414100
D6: у периоду од 01.01.2026. - 30.06.2026. године
A7: ="ФИЛИЈАЛА: " & Filijala -> ФИЛИЈАЛА: 05 СОМБОР
A8: ="ЗДРАВСТВЕНА УСТАНОВА: " & ZU -> ЗДРАВСТВЕНА УСТАНОВА: 100205007 ДЗ СОМБОР
H10: у хиљадама (000) динара
A11: Р. бр. | B11: Извор финансирања | C11: 771100 исказан у обрасцу 5ГО | D11: Пренета средства за накнаде које нису исказане у приходима (сторниран расход извршен у текућој години) | E11: Укупно пренета средства за накнаде | F11: Исплате накнада исказаних у обрасцу 5ГО на 414100 | G11: Исплате накнада које нису исказане у расходима | H11: Укупно исплаћене накнаде
B12: 0 | C12: 1 | D12: 2 | E12: 3=1+2 | F12: 4 | G12: 5 | H12: 6=4+5
A13: 1 | B13: УКУПНА СРЕДСТВА (1.1-1.5) | C13: =C14+C15+C16+C17+C18 -> 0 | D13: 5510 | E13: 5510 | F13: 12 | G13: 5510 | H13: 5522
A14: 1.1 | B14: РФЗО | D14: 5451 | E14: =C14+D14 -> 5451 | G14: 5451 | H14: =F14+G14 -> 5451
A15: 1.2 | B15: ФОНД ПИО | D15: 59 | E15: =C15+D15 -> 59 | F15: 12 | G15: 59 | H15: =F15+G15 -> 71
A16: 1.3 | B16: СЕКРЕТАРИЈАТ ЗА СОЦИЈАЛНУ И ДЕЧИЈУ ЗАШТИТУ | E16: =C16+D16 -> 0 | H16: =F16+G16 -> 0
A17: 1.4 | B17: ОПШТИНА / ГРАД | E17: =C17+D17 -> 0 | H17: =F17+G17 -> 0
A18: 1.5 | B18: ОСТАЛО | E18: =C18+D18 -> 0 | H18: =F18+G18 -> 0
A20: Напомена: Овим обрасцем обухваћена су средства за:
A21: * накнаде за боловање преко 30 дана које рефундира РФЗО
A22: * накнаде за породиљско одсуство које рефундира Секретаријат за социјалну и дечију заштиту
A23: * накнаде за инвалиде II категорије које рефундира Фонд ПИО
A24: * накнаде за 35% за трудничко боловање

Sheet Krv1
A1: РЕПУБЛИЧКИ ФОНД ЗА ЗДРАВСТВЕНО | I1: КРВ 1
A2: ОСИГУРАЊЕ - БЕОГРАД
A3: Јована Мариновића 2
A7: ="ФИЛИЈАЛА: " & Filijala -> ФИЛИЈАЛА: 05 СОМБОР
A8: ="ЗДРАВСТВЕНА УСТАНОВА: " & ZU -> ЗДРАВСТВЕНА УСТАНОВА: 100205007 ДЗ СОМБОР
A9: ТРАНСФЕРИ РЕПУБЛИЧКОГ ФОНДА ЗА КРВ И ЛАБИЛНЕ ПРОДУКТЕ ОД КРВИ ЗДРАВСТВЕНИМ УСТАНОВАМА ЗА ОСИГУРАНА ЛИЦА РЕПУБЛИЧКОГ ФОНДА- конто 781100 (ООСО) у периоду од 01.01.2026. - 30.06.2026. године
C10: у хиљадама (000) динара
A11: Р. бр. | B11: Назив | C11: Трансфери за крв и лабилне продукте од крви
B12: 0 | C12: 1
A13: 1 | B13: 781100 - Трансфери за крв и лабилне продукте од крви за осигурана лица Републичког фонда
A18: РАСХОДИ ЗА КРВ И ЛАБИЛНЕ ПРОДУКТЕ ОД КРВИ ЗА ОСИГУРАНА ЛИЦА РЕПУБЛИЧКОГ ФОНДА у периоду од 01.01.2026. - 30.06.2026. године
I19: у хиљадама (000) динара
A20: Р. бр. | B20: Назив | C20: Институт за трансфузију крви Београд | D20: Завод за трансфузију крви Нови Сад | E20: Завод за трансфузију крви Ниш | F20: Остали | I20: Укупно
F21: ЗУ од којих је набављена крв | G21: Остали добављачи | H21: Укупно остали
B22: 0 | C22: 1 | D22: 2 | E22: 3 | F22: 4 | G22: 5 | H22: 6=4+5 | I22: 7 = 1+2+3+6
A23: 1 | B23: 426700 - Крв и лабилни продукти од крви | H23: =F23+G23 -> 0 | I23: =C23+D23+E23+H23 -> 0
A26: Напомена 1: Средства за КПП 076 и за испоручену крв за осигурана лица Републичког фонда приликом пружања услуга ван уговорене накнаде
A27: Напомена 2: Уз образац Крв 1 здравствена установа треба да достави и обавештење на које се установе и у ком износу односи податак исказан у колонама 4 и 5

Sheet Krv2a
A1: РЕПУБЛИЧКИ ФОНД ЗА ЗДРАВСТВЕНО | D1: КРВ 2а
A2: ОСИГУРАЊЕ - БЕОГРАД
A3: Јована Мариновића 2
A7: ="ФИЛИЈАЛА: " & Filijala -> ФИЛИЈАЛА: 05 СОМБОР
A8: ="ЗДРАВСТВЕНА УСТАНОВА: " & ZU -> ЗДРАВСТВЕНА УСТАНОВА: 100205007 ДЗ СОМБОР
A9: ОСТВАРЕНИ ПРИХОДИ ОД ЗДРАВСТВЕНИХ УСТАНОВА ИЗ ПЛАНА МРЕЖЕ ПО ОСНОВУ ПРОДАЈЕ КРВИ И ЛАБИЛНИХ ПРОДУКАТА ОД КРВИ ЗА ОСИГУРАНА ЛИЦА РЕПУБЛИЧКОГ ФОНДА у периоду од 01.01.2026. - 30.06.2026. године
D10: у хиљадама (000) динара
B11: Р. бр. | C11: 781100 - Остварени приходи од здравствених установа из плана мреже по основу продаје крви и лабилних продуката од крви за осигурана лица Републичког фонда | D11: Износ
D12: 1
B13: 1 | C13: 100201001 Дом здравља "Др Јанош Хаџи", Бачка Топола
B14: 2 | C14: 100201002 Дом здравља "Др Мартон Шандор", Мали Иђош
B15: 3 | C15: 100201004 Завод за јавно здравље Суботица
B16: 4 | C16: 100201005 Апотека Суботица
B17: 5 | C17: 100201006 Дом здравља Суботица
B18: 6 | C18: 100201007 Општа болница Суботица
B19: 7 | C19: 100202001 Дом здравља Житиште
B20: 8 | C20: 100202003 Дом здравља Нови Бечеј
B21: 9 | C21: 100202004 Дом здравља Сечањ
B22: 10 | C22: 100202005 Дом здравља Нова Црња
B23: 11 | C23: 100202007 Специјална болница "Русанда" Меленци
B24: 12 | C24: 100202008 Специјална болница за плућне болести "Др Васа Савић", Зрењанин
B25: 13 | C25: 100202009 Завод за јавно здравље Зрењанин
B26: 14 | C26: 100202010 Апотека Зрењанин
B27: 15 | C27: 100202011 Дом здравља "Др Бошко Вребалов" Зрењанин
B28: 16 | C28: 100202012 Општа болница "Ђ. Јовановић" Зрењанин
B29: 17 | C29: 100203001 Дом здравља Ада
B30: 18 | C30: 100203002 Дом здравља Кањижа
B31: 19 | C31: 100203003 Дом здравља Нови Кнежевац
B32: 20 | C32: 100203004 Дом здравља Чока
B33: 21 | C33: 100203007 Специјална болница "Свети Врачеви", Нови Кнежевац
B34: 22 | C34: 100203008 Специјална болница за рехабилитацију " Бања Кањижа "
B35: 23 | C35: 100203009 Завод за јавно здравље Кикинда
B36: 24 | C36: 100203010 Апотека Кикинда
B37: 25 | C37: 100203011 Дом здравља Кикинда
B38: 26 | C38: 100203012 Општа болница Кикинда
B39: 27 | C39: 100203013 Дом здравља Сента
B40: 28 | C40: 100203014 Општа болница Сента
B41: 29 | C41: 100203015 Апотека Сента
B42: 30 | C42: 100204001 Дом здравља Алибунар
B43: 31 | C43: 100204002 Дом здравља Бела Црква
B44: 32 | C44: 100204003 Дом здравља Ковачица
B45: 33 | C45: 100204004 Дом здравља "Ковин", Ковин
B46: 34 | C46: 100204005 Дом здравља Опово
B47: 35 | C47: 100204006 Дом здравља "1.Октобар", Пландиште
B48: 36 | C48: 100204009 Специјална болница за плућне болести "Др Будислав Бабић" Бела Црква
B49: 37 | C49: 100204010 Специјална болница за психијатријске болести "Др Славољуб Бакаловић" Вршац
B50: 38 | C50: 100204011 Неуропсихијатријска болница "Ковин", Ковин
B51: 39 | C51: 100204012 Завод за јавно здравље Панчево
B52: 40 | C52: 100204014 Апотека Вршац
B53: 41 | C53: 100204015 Дом здравља Вршац
B54: 42 | C54: 100204016 Општа болница Вршац
B55: 43 | C55: 100204017 Дом здравља Панчево
B56: 44 | C56: 100204018 Општа болница Панчево
B57: 45 | C57: 100205001 Дом здравља Апатин
B58: 46 | C58: 100205002 Дом здравља Кула
B59: 47 | C59: 100205003 Дом здравља "Каменко Гагрчин", Оџаци
B60: 48 | C60: 100205005 Завод за јавно здравље Сомбор
B61: 49 | C61: 100205006 Апотека Сомбор
B62: 50 | C62: 100205007 Дом здравља "Др Ђорђе Лазић" Сомбор
B63: 51 | C63: 100205008 Општа болница "Др Радивој Симоновић" Сомбор
B64: 52 | C64: 100205009 Специјална болница за рехабилитацију"Јунаковић"Апатин
B65: 53 | C65: 100206001 Дом здравља Бач
B66: 54 | C66: 100206002 Дом здравља "Др Младен Стојановић", Бачка Паланка
B67: 55 | C67: 100206003 Дом здравља Бачки Петровац
B68: 56 | C68: 100206004 Дом здравља "Др Душан Савић-Дода" Беочин
B69: 57 | C69: 100206005 Дом здравља Бечеј
B70: 58 | C70: 100206006 Дом здравља Жабаљ
B71: 59 | C71: 100206007 Дом здравља "Др Ђорђе Бастић", Србобран
B72: 60 | C72: 100206008 Дом здравља Темерин
B73: 61 | C73: 100206009 Дом здравља Тител
B74: 62 | C74: 100206010 Дом здравља "Нови Сад"
B75: 63 | C75: 100206012 Завод за трансфузију крви Војводине
B76: 64 | C76: 100206013 Специјална болница за реуматске болести Нови Сад
B77: 65 | C77: 100206014 Институт за јавно здравље Војводине
B78: 66 | C78: 100206015 Институт за онкологију Војводине, Сремска Каменица
B79: 67 | C79: 100206016 Институт за плућне болести Војводине, Сремска Каменица
B80: 68 | C80: 100206017 Институт за кардиоваскуларне болести Војводине, Сремска Каменица
B81: 69 | C81: 100206018 Институт за здравствену заштиту деце и омладине Војводине, Нови Сад
B82: 70 | C82: 100206019 Клиника за стоматологију Војводине, Нови Сад
B83: 71 | C83: 100206020 Универзитетски клинички центар Војводине Нови Сад
B84: 72 | C84: 100206021 Завод за здравствену заштиту радника Нови Сад
B85: 73 | C85: 100206022 Завод за здравствену заштиту студената Нови Сад
B86: 74 | C86: 100206023 Пастеров завод Нови Сад
B87: 75 | C87: 100206024 Апотека Нови Сад
B88: 76 | C88: 100206025 Завод за ургентну медицину, Нови Сад
B89: 77 | C89: 100206026 Дом здравља "Вељко Влаховић" Врбас
B90: 78 | C90: 100206027 Општа болница "Врбас" Врбас
B91: 79 | C91: 100206028 Апотека Врбас
B92: 80 | C92: 100206029 Војномедицински центар Нови Сад
B93: 81 | C93: 100207001 Дом здравља "Милорад Мика Павловић", Инђија
B94: 82 | C94: 100207002 Дом здравља "Др Драган Фундук", Пећинци
B95: 83 | C95: 100207003 Дом здравља Рума
B96: 84 | C96: 100207004 Дом здравља "Јован Јовановић-Змај", Стара Пазова
B97: 85 | C97: 100207005 Дом здравља Шид
B98: 86 | C98: 100207007 Специјална болница "Др Боривоје Гњатић"
B99: 87 | C99: 100207008 Завод за јавно здравље Сремска Митровица
B100: 88 | C100: 100207009 Специјална болница за рехабилитацију Термал Врдник
B101: 89 | C101: 100207010 Апотека Сремска Митровица
B102: 90 | C102: 100207011 Дом здравља Ириг
B103: 91 | C103: 100207012 Дом здравља Сремска Митровица
B104: 92 | C104: 100207013 Општа болница Сремска Митровица
B105: 93 | C105: 100207014 Здравствени центар Сремска Митровица
B106: 94 | C106: 100208001 Дом здравља Богатић
B107: 95 | C107: 100208002 Дом здравља Љубовија
B108: 96 | C108: 100208005 Специјална болница за рехабилитацију Бања Ковиљача
B109: 97 | C109: 100208006 Завод за јавно здравље Шабац
B110: 98 | C110: 100208007 Здравствена установа "Апотека Лозница"
B111: 99 | C111: 100208011 Дом здравља Владимирци
B112: 100 | C112: 100208012 Дом здравља "Др Даринка Лукић" Коцељева
B113: 101 | C113: 100208014 Дом здравља Крупањ
B114: 102 | C114: 100208015 Дом здравља Мали Зворник
B115: 103 | C115: 100208017 Здравствени центар Лозница
B116: 104 | C116: 100208018 Здравствени центар Шабац
B117: 105 | C117: 100209001 Дом здравља Уб
B118: 106 | C118: 100209003 Здравствена установа Апотека Ваљево
B119: 107 | C119: 100209004 Дом здравља Лајковац
B120: 108 | C120: 100209005 Завод за јавно здравље Ваљево
B121: 109 | C121: 100209008 Дом здравља Осечина
B122: 110 | C122: 100209009 Дом здравља Љиг
B123: 111 | C123: 100209010 Дом здравља Мионица
B124: 112 | C124: 100209012 Здравствени центар Ваљево
B125: 113 | C125: 100210002 Општа болница "Стефан Високи", Смедеревска Паланка
B126: 114 | C126: 100210003 СЗУ Апотека Здравље
B127: 115 | C127: 100210004 Апотека Смедерево
B128: 116 | C128: 100210005 Дом здравља Велика Плана
B129: 117 | C129: 100210006 Дом здравља Смедеревска Паланка
B130: 118 | C130: 100210007 Апотека "Медица" Велика Плана
B131: 119 | C131: 100210010 Здравствени центар Свети Лука, Смедерево
B132: 120 | C132: 100211001 Дом здравља Велико Градиште
B133: 121 | C133: 100211002 Дом здравља Жагубица
B134: 122 | C134: 100211005 Завод за јавно здравље Пожаревац
B135: 123 | C135: 100211006 Здравствена установа Апотека Пожаревац
B136: 124 | C136: 100211007 Дом здравља Жабари
B137: 125 | C137: 100211008 Дом здравља Голубац
B138: 126 | C138: 100211009 Дом здравља Кучево
B139: 127 | C139: 100211010 Дом здравља Мало Црниће
B140: 128 | C140: 100211011 Дом здравља Пожаревац
B141: 129 | C141: 100211012 Општа болница Пожаревац
B142: 130 | C142: 100211013 Дом здравља Петровац на Млави
B143: 131 | C143: 100211014 Општа болница Петровац на Млави
B144: 132 | C144: 100212001 Дом здравља Крагујевац
B145: 133 | C145: 100212002 Дом здравља Баточина
B146: 134 | C146: 100212003 Дом здравља "Даница и Коста Шамановић", Кнић
B147: 135 | C147: 100212004 Дом здравља Лапово
B148: 136 | C148: 100212005 Дом здравља "Милоје Хаџић - Шуле", Рача
B149: 137 | C149: 100212006 Дом здравља "Свети Ђорђе", Топола
B150: 138 | C150: 100212007 Здравствени центар Аранђеловац
B151: 139 | C151: 100212008 Завод за денталну медицину Крагујевац
B152: 140 | C152: 100212009 Специјална болница за рехабилитацију Буковицка бања Аранђеловац
B153: 141 | C153: 100212010 Универзитетски клинички центар Крагујевац
B154: 142 | C154: 100212011 Институт за јавно здравље Крагујевац
B155: 143 | C155: 100212012 Апотека Крагујевац
B156: 144 | C156: 100212013 Апотека "Шумадија" Аранђеловац
B157: 145 | C157: 100212014 Завод за ургентну медецину Крагујевац
B158: 146 | C158: 100213001 Дом здравља Деспотовац
B159: 147 | C159: 100213002 Дом здравља Свилајнац
B160: 148 | C160: 100213005 Завод за јавно здравље Ћуприја "Поморавље"
B161: 149 | C161: 100213007 Дом здравља Рековац
B162: 150 | C162: 100213008 Дом здравља Јагодина
B163: 151 | C163: 100213009 Општа болница Јагодина
B164: 152 | C164: 100213010 Здравствена установа апотека Јагодина
B165: 153 | C165: 100213011 Дом здравља Ћуприја
B166: 154 | C166: 100213012 Општа болница Ћуприја
B167: 155 | C167: 100213014 Дом здравља Параћин
B168: 156 | C168: 100213015 Апотека Параћин
B169: 157 | C169: 100213016 Општа болница Параћин
B170: 158 | C170: 100214002 Здравствени центар Неготин
B171: 159 | C171: 100214003 Здравствени центар Кладово
B172: 160 | C172: 100214006 Дом здравља Др Верољуб Цакић Мајданпек
B173: 161 | C173: 100214007 Општа болница Мајданпек
B174: 162 | C174: 100214010 Здравствени центар Бор
B175: 163 | C175: 100215001 Дом здравља Бољевац
B176: 164 | C176: 100215002 Здравствени центар Књажевац
B177: 165 | C177: 100215003 Здравствени центар Зајечар
B178: 166 | C178: 100215004 Специјална болница за рехабилитацију Гамзиград
B179: 167 | C179: 100215005 Завод за јавно здравље "Тимок" Зајечар
B180: 168 | C180: 100215006 Апотека Зајечар
B181: 169 | C181: 100216001 Здравствени центар Ужице
B182: 170 | C182: 100216003 Спец. болница за болести штитасте жлезде и болести метаболизма "Златибор"
B183: 171 | C183: 100216004 Завод за јавно здравље Ужице
B184: 172 | C184: 100216005 Апотека Ужице
B185: 173 | C185: 100217003 Специјална болница за рехабилитацију Ивањица
B186: 174 | C186: 100217004 Завод за јавно здравље Чачак
B187: 175 | C187: 100217005 Апотека Чачак
B188: 176 | C188: 100217009 Дом здравља "Чачак", Чачак
B189: 177 | C189: 100217010 Дом здравља Ивањица
B190: 178 | C190: 100217011 Дом здравља Лучани
B191: 179 | C191: 100217012 Општа болница Чачак
B192: 180 | C192: 100217013 Здравствени центар Горњи Милановац
B193: 181 | C193: 100218001 Дом здравља Рашка
B194: 182 | C194: 100218004 Завод за јавно здравље Краљево
B195: 183 | C195: 100218005 Специјална болница "Новопазарска Бања"
B196: 184 | C196: 100218006 Завод за специјалну рехабилитацију Врњачка Бања
B197: 185 | C197: 100218007 Специјална болница за рехабилитацију "Агенс" Матарушка Бања
B198: 186 | C198: 100218008 Апотека Краљево
B199: 187 | C199: 100218009 Дом здравља Тутин
B200: 188 | C200: 100218010 Дом здравља Врњачка Бања
B201: 189 | C201: 100218011 Специјална болница за интерне болести Врњачка Бања
B202: 190 | C202: 100218012 Дом здравља Нови Пазар
B203: 191 | C203: 100218013 Општа болница Нови Пазар
... 156 more rows

Sheet Krv2b
A1: РЕПУБЛИЧКИ ФОНД ЗА ЗДРАВСТВЕНО | D1: КРВ 2б
A2: ОСИГУРАЊЕ - БЕОГРАД
A3: Јована Мариновића 2
A7: ="ФИЛИЈАЛА: " & Filijala -> ФИЛИЈАЛА: 05 СОМБОР
A8: ="ЗДРАВСТВЕНА УСТАНОВА: " & ZU -> ЗДРАВСТВЕНА УСТАНОВА: 100205007 ДЗ СОМБОР
A10: ИЗВРШЕНИ РАСХОДИ ИЗ ОСТВАРЕНИХ ПРИХОДА ОД ПРОДАЈЕ КРВИ И ЛАБИЛНИХ ПРОДУКАТА ОД КРВИ у периоду од 01.01.2026. - 30.06.2026. године
D12: у хиљадама (000) динара
A13: Ознака ОП | B13: Број конта | C13: Опис | D13: Износ
A16: 1 | B16: 2 | C16: 3 | D16: 4
A17: 5172 | C17: ТЕКУЋИ РАСХОДИ И ИЗДАЦИ ЗА НЕФИНАНСИЈСКЕ ИМОВИНЕ (5173 + 5341) | D17: =D18+D186 -> 0
A18: 5173 | B18: 400000 | C18: ТЕКУЋИ РАСХОДИ (5174 + 5196 + 5241 + 5256 + 5280 + 5293 + 5309 + 5324) | D18: =D19+D41+D86+D101+D125+D138+D154+D169 -> 0
A19: 5174 | B19: 410000 | C19: РАСХОДИ ЗА ЗАПОСЛЕНЕ (5175 + 5177 + 5181 + 5183 + 5188 + 5190 + 5192 + 5194) | D19: =D20+D22+D26+D28+D33+D35+D37+D39 -> 0
A20: 5175 | B20: 411000 | C20: ПЛАТЕ, ДОДАЦИ И НАКНАДЕ ЗАПОСЛЕНИХ (ЗАРАДЕ) (5176) | D20: =D21 -> 0
A21: 5176 | B21: 411100 | C21: Плате, додаци и накнаде запослених
A22: 5177 | B22: 412000 | C22: СОЦИЈАЛНИ ДОПРИНОСИ НА ТЕРЕТ ПОСЛОДАВЦА (од 5178 до 5180) | D22: =SUM(D23:D25) -> 0
A23: 5178 | B23: 412100 | C23: Допринос за пензијско и инвалидско осигурање
A24: 5179 | B24: 412200 | C24: Допринос за здравствено осигурање
A25: 5180 | B25: 412300 | C25: Допринос за незапосленост
A26: 5181 | B26: 413000 | C26: НАКНАДЕ У НАТУРИ (5182) | D26: =D27 -> 0
A27: 5182 | B27: 413100 | C27: Накнаде у натури
A28: 5183 | B28: 414000 | C28: СОЦИЈАЛНА ДАВАЊА ЗАПОСЛЕНИМА (од 5184 до 5187) | D28: =SUM(D29:D32) -> 0
A29: 5184 | B29: 414100 | C29: Исплата накнада за време одсуствовања с посла на терет фондова
A30: 5185 | B30: 414200 | C30: Расходи за образовање деце запослених
A31: 5186 | B31: 414300 | C31: Отпремнине и помоћи
A32: 5187 | B32: 414400 | C32: Помоћ у медицинском лечењу запосленог или чланова уже породице и друге помоћи запосленом
A33: 5188 | B33: 415000 | C33: НАКНАДА ТРОШКОВА ЗА ЗАПОСЛЕНЕ (5189) | D33: =D34 -> 0
A34: 5189 | B34: 415100 | C34: Накнаде трошкова за запослене
A35: 5190 | B35: 416000 | C35: НАГРАДЕ ЗАПОСЛЕНИМА И ОСТАЛИ ПОСЕБНИ РАСХОДИ (5191) | D35: =D36 -> 0
A36: 5191 | B36: 416100 | C36: Награде запосленима и остали посебни расходи
A37: 5192 | B37: 417000 | C37: ПОСЛАНИЧКИ ДОДАТАК (5193) | D37: =D38 -> 0
A38: 5193 | B38: 417100 | C38: Посланички додатак
A39: 5194 | B39: 418000 | C39: СУДИЈСКИ ДОДАТАК (5195) | D39: =D40 -> 0
A40: 5195 | B40: 418100 | C40: Судијски додатак
A41: 5196 | B41: 420000 | C41: КОРИШЋЕЊЕ УСЛУГА И РОБА (5197 + 5205 + 5211 + 5220 + 5228 + 5231) | D41: =D42+D50+D56+D65+D73+D76 -> 0
A42: 5197 | B42: 421000 | C42: СТАЛНИ ТРОШКОВИ (од 5198 до 5204) | D42: =SUM(D43:D49) -> 0
A43: 5198 | B43: 421100 | C43: Трошкови платног промета и банкарских услуга
A44: 5199 | B44: 421200 | C44: Енергетске услуге
A45: 5200 | B45: 421300 | C45: Комуналне услуге
A46: 5201 | B46: 421400 | C46: Услуге комуникација
A47: 5202 | B47: 421500 | C47: Трошкови осигурања
A48: 5203 | B48: 421600 | C48: Закуп имовине и опреме
A49: 5204 | B49: 421900 | C49: Остали трошкови
A50: 5205 | B50: 422000 | C50: ТРОШКОВИ ПУТОВАЊА (од 5206 до 5210) | D50: =SUM(D51:D55) -> 0
A51: 5206 | B51: 422100 | C51: Трошкови службених путовања у земљи
A52: 5207 | B52: 422200 | C52: Трошкови службених путовања у иностранство
A53: 5208 | B53: 422300 | C53: Трошкови путовања у оквиру редовног рада
A54: 5209 | B54: 422400 | C54: Трошкови путовања ученика
A55: 5210 | B55: 422900 | C55: Остали трошкови транспорта
A56: 5211 | B56: 423000 | C56: УСЛУГЕ ПО УГОВОРУ (од 5212 до 5219) | D56: =SUM(D57:D64) -> 0
A57: 5212 | B57: 423100 | C57: Административне услуге
A58: 5213 | B58: 423200 | C58: Компјутерске услуге
A59: 5214 | B59: 423300 | C59: Услуге образовања и усавршавања запослених
A60: 5215 | B60: 423400 | C60: Услуге информисања
A61: 5216 | B61: 423500 | C61: Стручне услуге
A62: 5217 | B62: 423600 | C62: Услуге за домаћинство и угоститељство
A63: 5218 | B63: 423700 | C63: Репрезентација
A64: 5219 | B64: 423900 | C64: Остале опште услуге
A65: 5220 | B65: 424000 | C65: СПЕЦИЈАЛИЗОВАНЕ УСЛУГЕ (од 5221 до 5227) | D65: =SUM(D66:D72) -> 0
A66: 5221 | B66: 424100 | C66: Пољопривредне услуге
A67: 5222 | B67: 424200 | C67: Услуге образовања, културе и спорта
A68: 5223 | B68: 424300 | C68: Медицинске услуге
A69: 5224 | B69: 424400 | C69: Услуге одржавања аутопутева
A70: 5225 | B70: 424500 | C70: Услуге одржавања националних паркова и природних површина
A71: 5226 | B71: 424600 | C71: Услуге очувања животне средине, науке и геодетске услуге
A72: 5227 | B72: 424900 | C72: Остале специјализоване услуге
A73: 5228 | B73: 425000 | C73: ТЕКУЋЕ ПОПРАВКЕ И ОДРЖАВАЊЕ (5229 + 5230) | D73: =D74+D75 -> 0
A74: 5229 | B74: 425100 | C74: Текуће поправке и одржавање зграда и објеката
A75: 5230 | B75: 425200 | C75: Текуће поправке и одржавање опреме
A76: 5231 | B76: 426000 | C76: МАТЕРИЈАЛ (од 5232 до 5240) | D76: =SUM(D77:D85) -> 0
A77: 5232 | B77: 426100 | C77: Административни материјал
A78: 5233 | B78: 426200 | C78: Материјали за пољопривреду
A79: 5234 | B79: 426300 | C79: Материјали за образовање и усавршавање запослених
A80: 5235 | B80: 426400 | C80: Материјали за саобраћај
A81: 5236 | B81: 426500 | C81: Материјали за очување животне средине и науку
A82: 5237 | B82: 426600 | C82: Материјали за образовање, културу и спорт
A83: 5238 | B83: 426700 | C83: Медицински и лабораторијски материјали
A84: 5239 | B84: 426800 | C84: Материјали за одржавање хигијене и угоститељство
A85: 5240 | B85: 426900 | C85: Материјали за посебне намене
A86: 5241 | B86: 430000 | C86: АМОРТИЗАЦИЈА И УПОТРЕБА СРЕДСТАВА ЗА РАД (5242 + 5246 + 5248 + 5250 + 5254) | D86: =D87+D91+D93+D95+D99 -> 0
A87: 5242 | B87: 431000 | C87: АМОРТИЗАЦИЈА НЕКРЕТНИНА И ОПРЕМЕ (од 5243 до 5245) | D87: =SUM(D88:D90) -> 0
A88: 5243 | B88: 431100 | C88: Амортизација зграда и грађевинскиx објеката
A89: 5244 | B89: 431200 | C89: Амортизација опреме
A90: 5245 | B90: 431300 | C90: Амортизација осталих некретнина и опреме
A91: 5246 | B91: 432000 | C91: АМОРТИЗАЦИЈА КУЛТИВИСАНЕ ИМОВИНЕ (5247) | D91: =D92 -> 0
A92: 5247 | B92: 432100 | C92: Амортизација култивисане опреме
A93: 5248 | B93: 433000 | C93: УПОТРЕБА ДРАГОЦЕНОСТИ (5249) | D93: =D94 -> 0
A94: 5249 | B94: 433100 | C94: Употреба драгоцености
A95: 5250 | B95: 434000 | C95: УПОТРЕБА ПРИРОДНЕ ИМОВИНЕ (од 5251 до 5253) | D95: =SUM(D96:D98) -> 0
A96: 5251 | B96: 434100 | C96: Употреба земљишта
A97: 5252 | B97: 434200 | C97: Употреба подземног блага
A98: 5253 | B98: 434300 | C98: Употреба шума и вода
A99: 5254 | B99: 435000 | C99: АМОРТИЗАЦИЈА НЕМАТЕРИЈАЛНЕ ИМОВИНЕ (5255) | D99: =D100 -> 0
A100: 5255 | B100: 435100 | C100: Амортизација нематеријалне имовине
A101: 5256 | B101: 440000 | C101: ОТПЛАТА КАМАТА И ПРАТЕЋИ ТРОШКОВИ ЗАДУЖИВАЊА (5257 + 5267 + 5274 + 5276) | D101: =D102+D112+D119+D121 -> 0
A102: 5257 | B102: 441000 | C102: ОТПЛАТЕ ДОМАЋИХ КАМАТА (од 5258 до 5266) | D102: =SUM(D103:D111) -> 0
A103: 5258 | B103: 441100 | C103: Отплата камата на домаће хартије од вредности
A104: 5259 | B104: 441200 | C104: Отплата камата осталим нивоима власти
A105: 5260 | B105: 441300 | C105: Отплата камата домаћим јавним финансијским институцијама
A106: 5261 | B106: 441400 | C106: Отплата камата домаћим пословним банкама
A107: 5262 | B107: 441500 | C107: Отплата камата осталим домаћим кредиторима
A108: 5263 | B108: 441600 | C108: Отплата камата домаћинствима у земљи
A109: 5264 | B109: 441700 | C109: Отплата камата на домаће финансијске деривате
A110: 5265 | B110: 441800 | C110: Отплата камата на домаће менице
A111: 5266 | B111: 441900 | C111: Финансијске промене на финансијским лизинзима
A112: 5267 | B112: 442000 | C112: ОТПЛАТА СТРАНИХ КАМАТА (од 5268 до 5273) | D112: =SUM(D113:D118) -> 0
A113: 5268 | B113: 442100 | C113: Отплата камата на хартије од вредности емитоване на иностраном финансијском тржишту
A114: 5269 | B114: 442200 | C114: Отплата камата страним владама
A115: 5270 | B115: 442300 | C115: Отплата камата мултилатералним институцијама
A116: 5271 | B116: 442400 | C116: Отплата камата страним пословним банкама
A117: 5272 | B117: 442500 | C117: Отплата камата осталим страним кредиторима
A118: 5273 | B118: 442600 | C118: Отплата камата на стране финансијске деривате
A119: 5274 | B119: 443000 | C119: ОТПЛАТА КАМАТА ПО ГАРАНЦИЈАМА (5275) | D119: =D120 -> 0
A120: 5275 | B120: 443100 | C120: Отплата камата по гаранцијама
A121: 5276 | B121: 444000 | C121: ПРАТЕЋИ ТРОШКОВИ ЗАДУЖИВАЊА (од 5277 до 5279) | D121: =SUM(D122:D124) -> 0
A122: 5277 | B122: 444100 | C122: Негативне курсне разлике
A123: 5278 | B123: 444200 | C123: Казне за кашњење
A124: 5279 | B124: 444300 | C124: Остали пратећи трошкови задуживања
A125: 5280 | B125: 450000 | C125: СУБВЕНЦИЈЕ (5281 + 5284 + 5287 + 5290) | D125: =D126+D129+D132+D135 -> 0
A126: 5281 | B126: 451000 | C126: СУБВЕНЦИЈЕ ЈАВНИМ НЕФИНАНСИЈСКИМ ПРЕДУЗЕЋИМА И ОРГАНИЗАЦИЈАМА (5282 + 5283) | D126: =D127+D128 -> 0
A127: 5282 | B127: 451100 | C127: Текуће субвенције јавним нефинансијским предузећима и организацијама
A128: 5283 | B128: 451200 | C128: Капиталне субвенције јавним нефинансијским предузећима и организацијама
A129: 5284 | B129: 452000 | C129: СУБВЕНЦИЈЕ ПРИВАТНИМ ФИНАНСИЈСКИМ ИНСТИТУЦИЈАМА (5285 + 5286) | D129: =D130+D131 -> 0
A130: 5285 | B130: 452100 | C130: Текуће субвенције приватним финансијским институцијама
A131: 5286 | B131: 452200 | C131: Капиталне субвенције приватним финансијским институцијама
A132: 5287 | B132: 453000 | C132: СУБВЕНЦИЈЕ ЈАВНИМ ФИНАНСИЈСКИМ ИНСТИТУЦИЈАМА (5288 + 5289) | D132: =D133+D134 -> 0
A133: 5288 | B133: 453100 | C133: Текуће субвенције јавним финансијским институцијама
A134: 5289 | B134: 453200 | C134: Капиталне субвенције јавним финансијским институцијама
A135: 5290 | B135: 454000 | C135: СУБВЕНЦИЈЕ ПРИВАТНИМ ПРЕДУЗЕЋИМА (5291 + 5292) | D135: =D136+D137 -> 0
A136: 5291 | B136: 454100 | C136: Текуће субвенције приватним предузећима
A137: 5292 | B137: 454200 | C137: Капиталне субвенције приватним предузећима
A138: 5293 | B138: 460000 | C138: ДОНАЦИЈЕ, ДОТАЦИЈЕ И ТРАНСФЕРИ (5294 + 5297 + 5300 + 5303 + 5306) | D138: =D139+D142+D145+D148+D151 -> 0
A139: 5294 | B139: 461000 | C139: ДОНАЦИЈЕ СТРАНИМ ВЛАДАМА (5295 + 5296) | D139: =D140+D141 -> 0
A140: 5295 | B140: 461100 | C140: Текуће донације страним владама
A141: 5296 | B141: 461200 | C141: Капиталне донације страним владама
A142: 5297 | B142: 462000 | C142: ДОТАЦИЈЕ МЕЂУНАРОДНИМ ОРГАНИЗАЦИЈАМА (5298 + 5299) | D142: =D143+D144 -> 0
A143: 5298 | B143: 462100 | C143: Текуће дотације међународним организацијама
A144: 5299 | B144: 462200 | C144: Капиталне дотације међународним организацијама
A145: 5300 | B145: 463000 | C145: ТРАНСФЕРИ ОСТАЛИМ НИВОИМА ВЛАСТИ (5301 + 5302) | D145: =D146+D147 -> 0
A146: 5301 | B146: 463100 | C146: Текући трансфери осталим нивоима власти
A147: 5302 | B147: 463200 | C147: Капитални трансфери осталим нивоима власти
A148: 5303 | B148: 464000 | C148: ДОТАЦИЈЕ ОРГАНИЗАЦИЈАМА ОБАВЕЗНОГ СОЦИЈАЛНОГ ОСИГУРАЊА (5304 + 5305) | D148: =D149+D150 -> 0
A149: 5304 | B149: 464100 | C149: Текуће дотације организацијама обавезног социјалног осигурања
A150: 5305 | B150: 464200 | C150: Капиталне дотације организацијама обавезног социјалног осигурања
A151: 5306 | B151: 465000 | C151: ОСТАЛЕ ДОТАЦИЈЕ И ТРАНСФЕРИ (5307 + 5308) | D151: =D152+D153 -> 0
A152: 5307 | B152: 465100 | C152: Остале текуће дотације и трансфери
A153: 5308 | B153: 465200 | C153: Остале капиталне дотације и трансфери
A154: 5309 | B154: 470000 | C154: СОЦИЈАЛНО ОСИГУРАЊЕ И СОЦИЈАЛНА ЗАШТИТА (5310 + 5314) | D154: =D155+D159 -> 0
A155: 5310 | B155: 471000 | C155: ПРАВА ИЗ СОЦИЈАЛНОГ ОСИГУРАЊА (ОРГАНИЗАЦИЈЕ ОБАВЕЗНОГ СОЦИЈАЛНОГ ОСИГУРАЊА) (од 5311 до 5313) | D155: =SUM(D156:D158) -> 0
A156: 5311 | B156: 471100 | C156: Права из социјалног осигурања која се исплаћују непосредно домаћинствима
A157: 5312 | B157: 471200 | C157: Права из социјалног осигурања која се исплаћују непосредно пружаоцима услуга
A158: 5313 | B158: 471900 | C158: Трансфери другим организацијама обавезног социјалног осигурања за доприносе за осигурање
A159: 5314 | B159: 472000 | C159: НАКНАДЕ ЗА СОЦИЈАЛНУ ЗАШТИТУ ИЗ БУЏЕТА (од 5315 до 5323) | D159: =SUM(D160:D168) -> 0
A160: 5315 | B160: 472100 | C160: Накнаде из буџета у случају болести и инвалидности
A161: 5316 | B161: 472200 | C161: Накнаде из буџета за породиљско одсуство
A162: 5317 | B162: 472300 | C162: Накнаде из буџета за децу и породицу
A163: 5318 | B163: 472400 | C163: Накнаде из буџета за случај незапослености
A164: 5319 | B164: 472500 | C164: Старосне и породичне пензије из буџета
A165: 5320 | B165: 472600 | C165: Накнаде из буџета у случају смрти
A166: 5321 | B166: 472700 | C166: Накнаде из буџета за образовање, културу, науку и спорт
A167: 5322 | B167: 472800 | C167: Накнаде из буџета за становање и живот
A168: 5323 | B168: 472900 | C168: Остале накнаде из буџета
A169: 5324 | B169: 480000 | C169: ОСТАЛИ РАСХОДИ (5325 + 5328 + 5332 + 5334 + 5337 + 5339) | D169: =D170+D173+D177+D179+D182+D184 -> 0
A170: 5325 | B170: 481000 | C170: ДОТАЦИЈЕ НЕВЛАДИНИМ ОРГАНИЗАЦИЈАМА (5326 + 5327) | D170: =D171+D172 -> 0
A171: 5326 | B171: 481100 | C171: Дотације непрофитним организацијама које пружају помоћ домаћинствима
A172: 5327 | B172: 481900 | C172: Дотације осталим непрофитним институцијама
A173: 5328 | B173: 482000 | C173: ПОРЕЗИ, ОБАВЕЗНЕ ТАКСЕ, КАЗНЕ, ПЕНАЛИ И КАМАТЕ (од 5329 до 5331) | D173: =SUM(D174:D176) -> 0
A174: 5329 | B174: 482100 | C174: Остали порези
A175: 5330 | B175: 482200 | C175: Обавезне таксе
A176: 5331 | B176: 482300 | C176: Новчане казне, пенали и камате
A177: 5332 | B177: 483000 | C177: НОВЧАНЕ КАЗНЕ И ПЕНАЛИ ПО РЕШЕЊУ СУДОВА (5333) | D177: =D178 -> 0
A178: 5333 | B178: 483100 | C178: Новчане казне и пенали по решењу судова
A179: 5334 | B179: 484000 | C179: НАКНАДА ШТЕТЕ ЗА ПОВРЕДЕ ИЛИ ШТЕТУ НАСТАЛУ УСЛЕД ЕЛЕМЕНТАРНИХ НЕПОГОДА ИЛИ ДРУГИХ ПРИРОДНИХ УЗРОКА (5335 + 5336) | D179: =D180+D181 -> 0
A180: 5335 | B180: 484100 | C180: Накнада штете за повреде или штету насталу услед елементарних непогода
A181: 5336 | B181: 484200 | C181: Накнада штете од дивљачи
A182: 5337 | B182: 485000 | C182: НАКНАДА ШТЕТЕ ЗА ПОВРЕДЕ ИЛИ ШТЕТУ НАНЕТУ ОД СТРАНЕ ДРЖАВНИХ ОРГАНА (5338) | D182: =D183 -> 0
A183: 5338 | B183: 485100 | C183: Накнада штете за повреде или штету нанетих од стране државних органа
A184: 5339 | B184: 489000 | C184: РАСХОДИ КОЈИ СЕ ФИНАНСИРАЈУ ИЗ СРЕДСТАВА ЗА РЕАЛИЗАЦИЈУ НАЦИОНАЛНОГ ИНВЕСТИЦИОНОГ ПЛАНА (5340) | D184: =D185 -> 0
A185: 5340 | B185: 489100 | C185: Расходи који се финансирају из средстава за реализацију националног инвестиционог плана
A186: 5341 | B186: 500000 | C186: ИЗДАЦИ ЗА НЕФИНАНСИЈСКУ ИМОВИНУ (5342 + 5364 + 5373 + 5376 + 5384) | D186: =D187+D209+D218+D221+D229 -> 0
A187: 5342 | B187: 510000 | C187: ОСНОВНА СРЕДСТВА (5343 + 5348 + 5358 + 5360 + 5362) | D187: =D188+D193+D203+D205+D207 -> 0
A188: 5343 | B188: 511000 | C188: ЗГРАДЕ И ГРАЂЕВИНСКИ ОБЈЕКТИ (од 5344 до 5347) | D188: =SUM(D189:D192) -> 0
A189: 5344 | B189: 511100 | C189: Куповина зграда и објеката
A190: 5345 | B190: 511200 | C190: Изградња зграда и објеката
A191: 5346 | B191: 511300 | C191: Капитално одржавање зграда и објеката
A192: 5347 | B192: 511400 | C192: Пројектно планирање
A193: 5348 | B193: 512000 | C193: МАШИНЕ И ОПРЕМА (од 5349 до 5357) | D193: =SUM(D194:D202) -> 0
A194: 5349 | B194: 512100 | C194: Опрема за саобраћај
A195: 5350 | B195: 512200 | C195: Административна опрема
A196: 5351 | B196: 512300 | C196: Опрема за пољопривреду
A197: 5352 | B197: 512400 | C197: Опрема за заштиту животне средине
A198: 5353 | B198: 512500 | C198: Медицинска и лабораторијска опрема
A199: 5354 | B199: 512600 | C199: Опрема за образовање, културу и спорт
A200: 5355 | B200: 512700 | C200: Опрема за војску
A201: 5356 | B201: 512800 | C201: Опрема за јавну безбедност
A202: 5357 | B202: 512900 | C202: Опрема за производњу, моторна, непокретна и немоторна опрема
A203: 5358 | B203: 513000 | C203: ОСТАЛЕ НЕКРЕТНИНЕ И ОПРЕМА (5359) | D203: =D204 -> 0
A204: 5359 | B204: 513100 | C204: Остале некретнине и опрема
A205: 5360 | B205: 514000 | C205: КУЛТИВИСАНА ИМОВИНА (5361) | D205: =D206 -> 0
A206: 5361 | B206: 514100 | C206: Култивисана имовина
A207: 5362 | B207: 515000 | C207: НЕМАТЕРИЈАЛНА ИМОВИНА (5363) | D207: =D208 -> 0
... 75 more rows

Sheet DP
A1: РЕПУБЛИЧКИ ФОНД ЗА ЗДРАВСТВЕНО | F1: ДП
A2: ОСИГУРАЊЕ - БЕОГРАД
A3: Јована Мариновића 2
B5: ДИРЕКТНА ПЛАЋАЊА у периоду од 01.01.2026. - 30.06.2026. године
A7: ="ФИЛИЈАЛА: " & Filijala -> ФИЛИЈАЛА: 05 СОМБОР
A8: ="ЗДРАВСТВЕНА УСТАНОВА: " & ZU -> ЗДРАВСТВЕНА УСТАНОВА: 100205007 ДЗ СОМБОР
F9: у хиљадама (000) динара
B10: Р. бр. | C10: Конто | D10: ИЗНОС НЕРЕАЛИЗОВАНИХ ОБРАЧУНСКИХ НАЛОГА ЗАКЉУЧНО СА 31.12.2025. КОЈИ СУ РЕАЛИЗОВАНИ У ПЕРИОДУ 01.01.-30.06.2026. ГОДИНE | E10: ИЗНОС РЕАЛИЗОВАНИХ ОБРАЧУНСКИХ НАЛОГА У 2026. ГОДИНИ ЗА ПЕРИОД 01.01.-30.06.2026. ГОДИНЕ | F10: ИЗНОС НЕРЕАЛИЗОВАНИХ ОБРАЧУНСКИХ НАЛОГА У 2026. ГОДИНИ ЗАКЉУЧНО СА 30.06.2026. ГОДИНЕ
B11: 1 | C11: 2 | D11: 3 | E11: 4 | F11: 5
B12: 1 | C12: 421200 - Енергетске услуге | D12: =+D13+D14 -> 0 | E12: =+E13+E14 -> 9022 | F12: =+F13+F14 -> 0
C13: 06C - Енергенти у ЗУ - примарна ЗЗ | E13: 9022
C14: 07C - Енергенти у ЗУ - секундарна и терцијарна ЗЗ
B15: 2 | C15: 423100 - Комуналне услуге | D15: =+D16 -> 0 | E15: =+E16 -> 0 | F15: =+F16 -> 0
C16: 07E - Накнада за материјалне и остале трошкове - секундарна и терцијарна ЗЗ
B17: 3 | C17: 423600 - Услуге за домаћинство и угоститељство | D17: =+D18 -> 0 | E17: =+E18 -> 0 | F17: =+F18 -> 0
C18: 07D - Исхрана болесника - секундарна и терцијарна ЗЗ
B19: 4 | C19: 426700 - Медицински и лабораторијски материјали | D19: =SUM(D20:D52) -> 0 | E19: =SUM(E20:E52) -> 19081 | F19: =SUM(F20:F52) -> 0
C20: 062 - Лекови у ЗУ - примарна ЗЗ | E20: 6598
C21: 064 - Санитетски и медицински потрошни материјал - примарна ЗЗ | E21: 4076
C22: 065 - Реагенси - примарна ЗЗ | E22: 8407
C23: 071 - Лекови у ЗУ - секундарна и терцијарна ЗЗ
C24: 073 - Цитостатици са Листе лекова
C25: 074 - Лекови са Ц Листе лекова
C26: 075 - Лекови за хемофилију
C27: 076 - Крв и лабилни продукти од крви
C28: 077 - Уградни материјал у ортопедији
C29: 078 - Имплантати у ортопедији
C30: 079 - Уградни материјал у кардиохирургији
C31: 07V - Варијабилни део накнаде по основу ДСГ учинка и показатеља квалитета
C32: 080 - Дијализни материјал
C33: 081 - Пејсмејкери и електроде
C34: 082 - Стентови
C35: 083 - Графтови
C36: 084 - Остали уградни материјал
C37: 085 - Санитетски и медицински потрошни материјал - секундарна и терцијарна ЗЗ
C38: 086 - Реагенси - секундарна и терцијарна ЗЗ
C39: 088 - Интраокуларна сочива
C40: 920 - Лекови ван листе лекова за лечење ретких урођених болести метаболизма
C41: 922 - Трансплантација срца
C42: 925 - Механичка екстракција тромба
C43: 926 - Лекови ван листе лекова за лечење ретких тумора
C44: 927 - Лекови за лечење хередитарног ангиоедема
C45: 930 - Off label лекови
C46: 958 - Лекови ван листе лекова
C47: 961 - Трансплантације бубрега
C48: 962 - Трансплантације јетре
C49: 963 - Трансплантације костне сржи
C50: 980 - Ендоваскуларно лечење интракранијалних анеуризми
C51: 986 - Октреотид и ланреотид
C52: 994 - Перкутана вертебропластика
C53: Укупно: | D53: =+D12+D15+D17+D19 -> 0 | E53: =+E12+E15+E17+E19 -> 28103 | F53: =+F12+F15+F17+F19 -> 0

Sheet Asignacije
A1: РЕПУБЛИЧКИ ФОНД ЗА ЗДРАВСТВЕНО | F1: АС
A2: ОСИГУРАЊЕ - БЕОГРАД
A3: Јована Мариновића 2
B5: АСИГНАЦИЈЕ у периоду од 01.01.2026. - 30.06.2026. године
A7: ="ФИЛИЈАЛА: " & Filijala -> ФИЛИЈАЛА: 05 СОМБОР
A8: ="ЗДРАВСТВЕНА УСТАНОВА: " & ZU -> ЗДРАВСТВЕНА УСТАНОВА: 100205007 ДЗ СОМБОР
F9: у хиљадама (000) динара
B10: Р. бр. | C10: Конто | D10: ИЗНОС НЕРЕАЛИЗОВАНИХ ОБРАЧУНСКИХ НАЛОГА ЗАКЉУЧНО СА 31.12.2025. КОЈИ СУ РЕАЛИЗОВАНИ У ПЕРИОДУ 01.01.-30.06.2026. ГОДИНE | E10: ИЗНОС РЕАЛИЗОВАНИХ ОБРАЧУНСКИХ НАЛОГА У 2026. ГОДИНИ ЗА ПЕРИОД 01.01.-30.06.2026. ГОДИНЕ | F10: ИЗНОС НЕРЕАЛИЗОВАНИХ ОБРАЧУНСКИХ НАЛОГА У 2026. ГОДИНИ ЗАКЉУЧНО СА 30.06.2026. ГОДИНЕ
B11: 1 | C11: 2 | D11: 3 | E11: 4 | F11: 5
B12: 1 | C12: 012 - Лекови на рецепт
B13: 2 | C13: 013 - Помагала у апотекама
B14: 3 | C14: 020 - Амбулантно-поликлиничке услуге у РХ
B15: 4 | C15: 021 - Стационарна рехабилитација у РХ
B16: 5 | C16: 05E - Остали директни и индиректни трошкови - стоматолошка ЗЗ
B17: 6 | C17: 062 - Лекови у ЗУ - примарна ЗЗ
B18: 7 | C18: 064 - Санитетски и медицински потрошни материјал - примарна ЗЗ
B19: 8 | C19: 065 - Реагенси - примарна ЗЗ
B20: 9 | C20: 06C - Енергенти у ЗУ - примарна ЗЗ
B21: 10 | C21: 06E - Накнада за материјалне и остале трошкове - примарна ЗЗ
B22: 11 | C22: 071 - Лекови у ЗУ - секундарна и терцијарна ЗЗ
B23: 12 | C23: 073 - Цитостатици са Листе лекова
B24: 13 | C24: 076 - Крв и лабилни продукти од крви
B25: 14 | C25: 077 - Уградни материјал у ортопедији
B26: 15 | C26: 078 - Имплантати у ортопедији
B27: 16 | C27: 07C - Енергенти у ЗУ - секундарна и терцијарна ЗЗ
B28: 17 | C28: 07D - Исхрана болесника - секундарна и терцијарна ЗЗ
B29: 18 | C29: 07E - Накнада за материјалне и остале трошкове - секундарна и терцијарна ЗЗ
B30: 19 | C30: 07V-30 - Лекови у ЗУ - варијабилни
B31: 20 | C31: 07V-31 - Санитетски и медицински потрошни материјал - варијабини
B32: 21 | C32: 07V-32 - Енергенти - варијабилни
B33: 22 | C33: 07V-33 - Накнада за материјалне и остале трошкове - варијабилни
B34: 23 | C34: 07V-35 - Реагенси - варијабилни
B35: 24 | C35: 080 - Дијализни материјал
B36: 25 | C36: 084 - Остали уградни материјал
B37: 26 | C37: 085 - Санитетски и медицински потрошни материјал - секундарна и терцијарна ЗЗ
B38: 27 | C38: 086 - Реагенси - секундарна и терцијарна ЗЗ
B39: 28 | C39: 087 - Лекови ван Листе лекова - секундарна и терцијарна ЗЗ
B40: 29 | C40: 088 - Интраокуларна сочива
B41: 30 | C41: 919 - Медицински гасови - примарна ЗЗ
B42: 31 | C42: 930 - Off label лекови
B43: 32 | C43: 931 - Медицински гасови - секундарна и терцијарна ЗЗ
B44: 33 | C44: 958 - Лекови ван листе лекова
B45: 34 | C45: 981 - Дијeтетски производи за оболеле од фенилкетонурије и гликогенозе
B46: 35 | C46: 986 - Октреотид и ланреотид
C47: Укупно: | D47: =SUM(D12:D46) -> 0 | E47: =SUM(E12:E46) -> 0 | F47: =SUM(F12:F46) -> 0

Sheet KontrolaF
A1: Matični broj | B1: Naziv ustanove | C1: R.Br. | G1: Odstupanja
A2: =MaticniBroj -> 08906165 | B2: =NazivKorisnika -> Д.З. " ДР ЂОРЂЕ ЛАЗИЋ" СОМБОР | G2: u 000 decimal | H2: u 000 din
E3: u decimal din | F3: u 000 din
C4: 2 | D4: 4712 iz SAP ---> | F4: =ROUND(E4/1000,0) -> 0
C6: 3 | D6: 7811 iz OZPR | E6: ---> | F6: =OZPR!J31 -> 1643
C8: 4 | D8: ZBIR = 2 + 3 | F8: =F4+F6 -> 1643
C10: 5 | D10: 781100 iz obrasca IB | E10: ---> | F10: =ObrazacIB!I138 -> 563659
C12: 6 | D12: RAZLIKA = 4 - 5 | G12: =F8-F10 -> -562016 | H12: =G12 -> -562016
C14: 7 | D14: PRERAČUNATI PDV | E14: --->
C16: 8 | D16: PDV iz participacije | E16: ---> | F16: =OZPR!E31*0.1 -> 0
C18: 9 | D18: ZBIR = 7 + 8 | F18: =F14+F16 -> 0
C20: 10 | D20: PDV iz K9 | E20: ---> | F20: =K9OOSO!E22 -> 0
C22: 11 | D22: Odstupanje = 9 - 10 | G22: =F18-F20 -> 0 | H22: =Odstupanje_1 -> 0
C24: 12 | D24: Asignacije | E24: ---> | F24: =+Asignacije!F47 -> 0
C26: 13 | D26: Realizovane asignacije iz prethodne godine | E26: ---> | F26: =+Asignacije!D47 -> 0
C28: 14 | D28: Obrazloženo odstupanje | E28: ---> | F28: 0
C30: 15 | D30: Konačno odstupanje = 11 - 12 - 13 - 14 | G30: =H22-F24-F26-F28 -> 0 | H30: =G30 -> 0
